Workbook

Sheet LKP (hidden)
B1: 8 | C1: 10 | D1: 12 | E1: 14 | F1: 16 | G1: 18 | H1: 20 | I1: 22 | J1: 24 | K1: 26 | L1: 28 | M1: 30 | N1: 32 | P1: qmd | Q1: Intercept | R1: =VLOOKUP($P$1,lkp_coeffs,6,FALSE) -> -5.146071773 | W1: maxden1 | X1: Intercept | Y1: =VLOOKUP($W$1,lkp_coeffs,12,FALSE) -> 4.130887475 | Z1: 0 | AG1: 0.55 | AJ1: 0.15 | AL1: 0.4 | AM1: alpha | AN1: =VLOOKUP($AN$5,lkp_coeffs,7,FALSE) -> 8366.226755 | AT1: 6 | AU1: 8 | AV1: 10 | AW1: 12 | AX1: 14 | AY1: 16 | AZ1: 18 | BA1: 20 | BB1: 22 | BC1: 24 | BD1: 26 | BE1: 28 | BF1: 30 | BI1: eqn | BJ1: mratio | BM1: 10 | BN1: 20 | BO1: 30 | BP1: 40 | BQ1: 50 | BR1: 60 | BS1: 70 | BT1: 80 | BU1: 90 | BW1: maxden2 | BX1: Intercept | BY1: =VLOOKUP($BW$1,lkp_coeffs,12,FALSE) -> 3.015427337 | BZ1: 0 | CE1: 0.55 | CH1: 0.15 | CJ1: 0.4 | CL1: topht4 | CM1: a | CN1: =VLOOKUP($CL$1,lkp_coeffs,2,FALSE) -> 20.84456456 | CQ1: 6 | CR1: 8 | CS1: 10 | CT1: 12 | CU1: 14 | CV1: 16 | CW1: 18 | CX1: 20 | CY1: 22 | CZ1: 24 | DA1: 26 | DB1: 28 | DC1: 30
A2: N | B2: ="QMD_"&TEXT(B$1,"00") -> QMD_08 | C2: ="QMD_"&TEXT(C$1,"00") -> QMD_10 | D2: QMD_12 | E2: QMD_14 | F2: QMD_16 | G2: QMD_18 | H2: QMD_20 | I2: QMD_22 | J2: QMD_24 | K2: QMD_26 | L2: QMD_28 | M2: QMD_30 | N2: QMD_32 | O2: MAXV | Q2: logd | R2: =VLOOKUP($P$1,lkp_coeffs,5,FALSE) -> 3.052210658 | X2: logn | Y2: =VLOOKUP($W$1,lkp_coeffs,11,FALSE) -> -1.449074611 | Z2: =VLOOKUP($W$1,lkp_coeffs,13,FALSE) -> 0.1139495222 | AD2: N | AE2: v | AG2: NZICMLL | AH2: v | AJ2: CC | AK2: v | AL2: xx | AM2: delta | AN2: =VLOOKUP($AN$5,lkp_coeffs,10,FALSE) -> -1.590152515 | AS2: N | AT2: ="THT_"&TEXT(AT$1,"00") -> THT_06 | AU2: ="THT_"&TEXT(AU$1,"00") -> THT_08 | AV2: THT_10 | AW2: THT_12 | AX2: THT_14 | AY2: THT_16 | AZ2: THT_18 | BA2: THT_20 | BB2: THT_22 | BC2: THT_24 | BD2: THT_26 | BE2: THT_28 | BF2: THT_30 | BI2: a | BJ2: =VLOOKUP($BJ$1,lkp_coeffs,2,FALSE) -> -4.683521238 | BL2: N | BM2: ="MR_"&TEXT(BM$1,"00") -> MR_10 | BN2: ="MR_"&TEXT(BN$1,"00") -> MR_20 | BO2: MR_30 | BP2: MR_40 | BQ2: MR_50 | BR2: MR_60 | BS2: MR_70 | BT2: MR_80 | BU2: MR_90 | BX2: logn | BY2: =VLOOKUP($BW$1,lkp_coeffs,11,FALSE) -> -0.5337894218 | BZ2: =VLOOKUP($BW$1,lkp_coeffs,13,FALSE) -> 0.03616588264 | CB2: N | CC2: QMD | CE2: NZICMLL | CF2: QMD | CH2: CC | CI2: QMD | CJ2: xx | CM2: b | CN2: =VLOOKUP($CL$1,lkp_coeffs,3,FALSE) -> 0.6416368553 | CP2: N | CQ2: ="THT_"&TEXT(CQ$1,"00") -> THT_06 | CR2: ="THT_"&TEXT(CR$1,"00") -> THT_08 | CS2: THT_10 | CT2: THT_12 | CU2: THT_14 | CV2: THT_16 | CW2: THT_18 | CX2: THT_20 | CY2: THT_22 | CZ2: THT_24 | DA2: THT_26 | DB2: THT_28 | DC2: THT_30 | DD2: MAXD
A3: 100 | B3: =IF(10^($R$1+$R$2*LOG10(B$1)+$R$3*LOG10($A3))>1.05*$O3,#N/A,10^($R$1+$R$2*LOG10(B$1)+$R$3*LOG10($A3))) -> 0.01056793757 | C3: =IF(10^($R$1+$R$2*LOG10(C$1)+$R$3*LOG10($A3))>1.05*$O3,#N/A,10^($R$1+$R$2*LOG10(C$1)+$R$3*LOG10($A3))) -> 0.02088238093 | D3: 0.03642988974 | E3: 0.05831678343 | F3: 0.08765913893 | G3: 0.1255814446 | H3: 0.173215589 | I3: 0.2317000725 | J3: 0.3021793746 | K3: 0.3858034342 | L3: 0.483727216 | M3: 0.5971103411 | N3: 0.7271167705 | O3: =10^($Y$3+$Y$2*LOG10($A3)) -> 17.08985009 | Q3: logn | R3: =VLOOKUP($P$1,lkp_coeffs,4,FALSE) -> 0.2068205644 | X3: Int2 | Y3: =Y1+1*Z1 -> 4.130887475 | AD3: =10^((LOG10(AE3)-$Y$1-$Z$1)/$Y$2) -> 17017.60408 | AE3: 0.01 | AG3: =AG$1*AD3 -> 9359.682246 | AH3: =AE3 -> 0.01 | AJ3: =AJ$1*AD3 -> 2552.640613 | AK3: =AE3 -> 0.01 | AL3: =AD3*AL$1 -> 6807.041633 | AM3: beta | AN3: =VLOOKUP($AN$5,lkp_coeffs,8,FALSE) -> -2.873613588 | AS3: =A3 -> 100 | AT3: =IF(0.95*$AS3>10^((LOG10(1/($AN$1*AT$1^$AN$3+$AN$4*$AS3*AT$1^$AN$2))-$Y$1-$Z$1)/$Y$2),#N/A, 1/($AN$1*AT$1^$AN$3+$AN$4*$AS3*AT$1^$AN$2)) -> 0.01988059401 | AU3: 0.04475659669 | AV3: 0.08362994721 | AW3: 0.1388774407 | AX3: 0.2125787646 | AY3: 0.3065489004 | AZ3: 0.4223659189 | BA3: 0.5613955688 | BB3: 0.7248133447 | BC3: 0.9136244178 | BD3: 1.128681679 | BE3: 1.370702078 | BF3: 1.640281398 | BI3: b | BJ3: =VLOOKUP($BJ$1,lkp_coeffs,3,FALSE) -> 4.391729652 | BL3: =A3 -> 100 | BM3: =VLOOKUP(BM1,$BH$10:$BJ$18,2,FALSE) -> 0.02775266325 | BN3: =VLOOKUP(BN1,$BH$10:$BJ$18,2,FALSE) -> 0.04256251139 | BO3: 0.0566426048 | BP3: 0.0717982947 | BQ3: 0.08938741748 | BR3: 0.11175 | BS3: 0.143631114 | BT3: 0.198 | BU3: 0.3500548 | BX3: Int2 | BY3: =BY1+1*BZ1 -> 3.015427337 | CB3: =10^((LOG10(CC3)-$BY$1-$BZ$1)/$BY$2) -> 121659.5962 | CC3: 2 | CE3: =CE$1*CB3 -> 66912.77793 | CF3: =CC3 -> 2 | CH3: =CH$1*CB3 -> 18248.93944 | CI3: =CC3 -> 2 | CJ3: =CB3*CJ$1 -> 48663.83849 | CM3: c | CN3: =VLOOKUP($CL$1,lkp_coeffs,14,FALSE) -> -0.2889951029 | CP3: =A3 -> 100 | CQ3: =IF($CN$1*CQ$1^$CN$2*$CP3^$CN$3>$DD3,#N/A,$CN$1*CQ$1^$CN$2*$CP3^$CN$3) -> 17.38974216 | CR3: =IF($CN$1*CR$1^$CN$2*$CP3^$CN$3>$DD3,#N/A,$CN$1*CR$1^$CN$2*$CP3^$CN$3) -> 20.91502754 | CS3: 24.13456507 | CT3: 27.12970569 | CU3: 29.9502609 | CV3: 32.62949711 | CW3: 35.1910094 | CX3: 37.65229186 | CY3: 40.02676476 | CZ3: 42.3250054 | DA3: 44.55553581 | DB3: 46.72534855 | DC3: 48.84027023 | DD3: =10^($BY$3+$BY$2*LOG10($CP3)) -> 88.68465752
A4: 200 | B4: =IF(10^($R$1+$R$2*LOG10(B$1)+$R$3*LOG10($A4))>1.05*$O4,#N/A,10^($R$1+$R$2*LOG10(B$1)+$R$3*LOG10($A4))) -> 0.01219689915 | C4: 0.02410123 | D4: 0.04204526078 | E4: 0.06730584101 | F4: 0.1011710818 | G4: 0.1449388023 | H4: 0.1999153624 | I4: 0.2674147531 | J4: 0.348757866 | K4: 0.4452718939 | L4: 0.5582898297 | M4: 0.6891500408 | N4: 0.8391959033 | O4: =10^($Y$3+$Y$2*LOG10($A4)) -> 6.259264863 | Y4: =Y1+Z1*2 -> 4.130887475 | Z4: 0.08449 | AD4: =10^((LOG10(AE4)-$Y$1-$Z$1)/$Y$2) -> 10547.72851 | AE4: 0.02 | AG4: =AG$1*AD4 -> 5801.250679 | AH4: =AE4 -> 0.02 | AJ4: =AJ$1*AD4 -> 1582.159276 | AK4: =AE4 -> 0.02 | AL4: =AD4*AL$1 -> 4219.091403 | AM4: gamma | AN4: =VLOOKUP($AN$5,lkp_coeffs,9,FALSE) -> 0.2978112904 | AS4: =A4 -> 200 | AT4: =IF(0.95*$AS4>10^((LOG10(1/($AN$1*AT$1^$AN$3+$AN$4*$AS4*AT$1^$AN$2))-$Y$1-$Z$1)/$Y$2),#N/A, 1/($AN$1*AT$1^$AN$3+$AN$4*$AS4*AT$1^$AN$2)) -> 0.01922174755 | AU4: 0.04267260238 | AV4: =IF(0.95*$AS4>10^((LOG10(1/($AN$1*AV$1^$AN$3+$AN$4*$AS4*AV$1^$AN$2))-$Y$1-$Z$1)/$Y$2),#N/A, 1/($AN$1*AV$1^$AN$3+$AN$4*$AS4*AV$1^$AN$2)) -> 0.07859989567 | AW4: =IF(0.95*$AS4>10^((LOG10(1/($AN$1*AW$1^$AN$3+$AN$4*$AS4*AW$1^$AN$2))-$Y$1-$Z$1)/$Y$2),#N/A, 1/($AN$1*AW$1^$AN$3+$AN$4*$AS4*AW$1^$AN$2)) -> 0.1286466637 | AX4: =IF(0.95*$AS4>10^((LOG10(1/($AN$1*AX$1^$AN$3+$AN$4*$AS4*AX$1^$AN$2))-$Y$1-$Z$1)/$Y$2),#N/A, 1/($AN$1*AX$1^$AN$3+$AN$4*$AS4*AX$1^$AN$2)) -> 0.1940885258 | AY4: =IF(0.95*$AS4>10^((LOG10(1/($AN$1*AY$1^$AN$3+$AN$4*$AS4*AY$1^$AN$2))-$Y$1-$Z$1)/$Y$2),#N/A, 1/($AN$1*AY$1^$AN$3+$AN$4*$AS4*AY$1^$AN$2)) -> 0.2758972494 | AZ4: =IF(0.95*$AS4>10^((LOG10(1/($AN$1*AZ$1^$AN$3+$AN$4*$AS4*AZ$1^$AN$2))-$Y$1-$Z$1)/$Y$2),#N/A, 1/($AN$1*AZ$1^$AN$3+$AN$4*$AS4*AZ$1^$AN$2)) -> 0.3747942669 | BA4: =IF(0.95*$AS4>10^((LOG10(1/($AN$1*BA$1^$AN$3+$AN$4*$AS4*BA$1^$AN$2))-$Y$1-$Z$1)/$Y$2),#N/A, 1/($AN$1*BA$1^$AN$3+$AN$4*$AS4*BA$1^$AN$2)) -> 0.4912957316 | BB4: =IF(0.95*$AS4>10^((LOG10(1/($AN$1*BB$1^$AN$3+$AN$4*$AS4*BB$1^$AN$2))-$Y$1-$Z$1)/$Y$2),#N/A, 1/($AN$1*BB$1^$AN$3+$AN$4*$AS4*BB$1^$AN$2)) -> 0.6257503136 | BC4: =IF(0.95*$AS4>10^((LOG10(1/($AN$1*BC$1^$AN$3+$AN$4*$AS4*BC$1^$AN$2))-$Y$1-$Z$1)/$Y$2),#N/A, 1/($AN$1*BC$1^$AN$3+$AN$4*$AS4*BC$1^$AN$2)) -> 0.7783707672 | BD4: =IF(0.95*$AS4>10^((LOG10(1/($AN$1*BD$1^$AN$3+$AN$4*$AS4*BD$1^$AN$2))-$Y$1-$Z$1)/$Y$2),#N/A, 1/($AN$1*BD$1^$AN$3+$AN$4*$AS4*BD$1^$AN$2)) -> 0.9492601845 | BE4: 1.138433743 | BF4: =IF(0.95*$AS4>10^((LOG10(1/($AN$1*BF$1^$AN$3+$AN$4*$AS4*BF$1^$AN$2))-$Y$1-$Z$1)/$Y$2),#N/A, 1/($AN$1*BF$1^$AN$3+$AN$4*$AS4*BF$1^$AN$2)) -> 1.345836662 | BI4: c | BJ4: =VLOOKUP($BJ$1,lkp_coeffs,14,FALSE) -> 0.9618390363 | BL4: =A4 -> 200 | BM4: =BM3 -> 0.02775266325 | BN4: =BN3 -> 0.04256251139 | BO4: 0.0566426048 | BP4: 0.0717982947 | BQ4: 0.08938741748 | BR4: 0.11175 | BS4: 0.143631114 | BT4: 0.198 | BU4: 0.3500548 | BY4: =BY1+BZ1*1.96 -> 3.015427337 | CB4: =10^((LOG10(CC4)-$BY$1-$BZ$1)/$BY$2) -> 33204.53471 | CC4: 4 | CE4: =CE$1*CB4 -> 18262.49409 | CF4: =CC4 -> 4 | CH4: =CH$1*CB4 -> 4980.680206 | CI4: =CC4 -> 4 | CJ4: =CB4*CJ$1 -> 13281.81388 | CP4: =A4 -> 200 | CQ4: =IF($CN$1*CQ$1^$CN$2*$CP4^$CN$3>$DD4,#N/A,$CN$1*CQ$1^$CN$2*$CP4^$CN$3) -> 14.23301634 | CR4: 17.11836358 | CS4: 19.75346477 | CT4: 22.20490338 | CU4: 24.51344874 | CV4: 26.70632845 | CW4: 28.80285443 | CX4: 30.81734511 | CY4: 32.7607846 | CZ4: 34.64183012 | DA4: 36.46745672 | DB4: 38.2433876 | DC4: 39.97439169 | DD4: =10^($BY$3+$BY$2*LOG10($CP4)) -> 61.25786633
A5: 300 | B5: 0.01326382326 | C5: 0.02620948581 | D5: 0.04572317121 | E5: 0.07319342145 | F5: 0.1100210252 | G5: 0.1576173283 | H5: 0.2174029646 | I5: 0.2908068665 | J5: 0.3792654707 | K5: 0.4842220661 | L5: 0.6071262491 | M5: 0.7494334611 | N5: 0.9126045898 | O5: 3.478195242 | AD5: 7973.319025 | AE5: 0.03 | AG5: =AG$1*AD5 -> 4385.325464 | AH5: 0.03 | AJ5: 1195.997854 | AK5: 0.03 | AL5: 3189.32761 | AN5: topht1 | AS5: 300 | AT5: 0.01860516891 | AU5: 0.04077404691 | AV5: =IF(0.95*$AS5>10^((LOG10(1/($AN$1*AV$1^$AN$3+$AN$4*$AS5*AV$1^$AN$2))-$Y$1-$Z$1)/$Y$2),#N/A, 1/($AN$1*AV$1^$AN$3+$AN$4*$AS5*AV$1^$AN$2)) -> 0.07414059573 | AW5: 0.1198198174 | AX5: 0.1785574804 | AY5: 0.2508180905 | AZ5: 0.3368539456 | BA5: 0.4367589124 | BB5: 0.5505099928 | BC5: 0.6779992456 | BD5: 0.8190581601 | BE5: 0.9734761699 | BF5: 1.141014639 | BL5: 300 | BM5: =BM4 -> 0.02775266325 | BN5: 0.04256251139 | BO5: 0.0566426048 | BP5: 0.0717982947 | BQ5: 0.08938741748 | BR5: 0.11175 | BS5: 0.143631114 | BT5: 0.198 | BU5: 0.3500548 | CB5: 9062.508501 | CC5: 8 | CE5: =CE$1*CB5 -> 4984.379675 | CF5: 8 | CH5: 1359.376275 | CI5: 8 | CJ5: 3625.0034 | CP5: 300 | CQ5: 12.65923426 | CR5: 15.22554105 | CS5: 17.56927217 | CT5: 19.74964876 | CU5: 21.80293218 | CV5: 23.75333941 | CW5: 25.618047 | CX5: 27.40979014 | CY5: 29.1383384 | CZ5: 30.81139177 | DA5: 32.43515403 | DB5: 34.01471556 | DC5: 35.55431797 | DD5: 49.3362589
A6: 400 | B6: 0.01407695189 | C6: 0.02781623847 | D6: 0.04852619556 | E6: 0.07768048866 | F6: 0.1167657807 | G6: 0.1672799391 | H6: 0.2307306886 | I6: 0.308634561 | J6: 0.4025160528 | K6: 0.5139069327 | L6: 0.6443456635 | M6: 0.7953769112 | N6: 0.9685511223 | O6: 2.292495044 | AD6: 6537.616935 | AE6: 0.04 | AG6: =AG$1*AD6 -> 3595.689314 | AH6: 0.04 | AJ6: 980.6425403 | AK6: 0.04 | AL6: 2615.046774 | AS6: 400 | AT6: 0.01802691701 | AU6: 0.03903723338 | AV6: 0.07016011951 | AW6: 0.1121264725 | AX6: 0.1653278744 | AY6: 0.2299184234 | AZ6: 0.3058888962 | BA6: 0.3931201777 | BB6: 0.4914214024 | BC6: 0.6005569547 | BD6: 0.720265419 | BE6: 0.8502727507 | BF6: 0.9903013143 | BL6: 400 | BM6: 0.02775266325 | BN6: 0.04256251139 | BO6: 0.0566426048 | BP6: 0.0717982947 | BQ6: 0.08938741748 | BR6: 0.11175 | BS6: 0.143631114 | BT6: 0.198 | BU6: 0.3500548 | CB6: 5966.194519 | CC6: 10 | CE6: =CE$1*CB6 -> 3281.406986 | CF6: 10 | CH6: 894.9291779 | CI6: 10 | CJ6: 2386.477808 | CP6: 400 | CQ6: 11.64932478 | CR6: 14.01090059 | CS6: 16.16765702 | CT6: 18.17409079 | CU6: 20.06357043 | CV6: 21.85838099 | CW6: 23.57432872 | CX6: 25.22313285 | CY6: 26.81378357 | CZ6: 28.35336659 | DA6: 29.84759077 | DB6: 31.3011404 | DC6: 32.71791871 | DD6: 42.3131384
A7: 500 | B7: 0.01474183717 | C7: 0.02913006036 | D7: 0.05081819409 | E7: 0.08134950834 | F7: 0.1222808844 | G7: 0.1751809372 | H7: 0.2416286045 | I7: 0.3232120476 | J7: 0.4215277679 | K7: 0.5381798831 | L7: 0.674779521 | M7: 0.8329443054 | N7: 1.014297914 | O7: 1.659122932 | AD7: 5604.569993 | AE7: 0.05 | AG7: 3082.513496 | AH7: 0.05 | AJ7: 840.685499 | AK7: 0.05 | AL7: 2241.827997 | AS7: 500 | AT7: 0.01748352597 | AU7: 0.03744233753 | AV7: 0.06658527496 | AW7: 0.1053614641 | AX7: 0.1539234431 | AY7: 0.2122338283 | AZ7: 0.280137467 | BA7: 0.3574096216 | BB7: 0.4437877649 | BC7: 0.538992288 | BD7: 0.642739761 | BE7: 0.7547512227 | BF7: 0.8747571687 | BL7: 500 | BM7: 0.02775266325 | BN7: 0.04256251139 | BO7: 0.0566426048 | BP7: 0.0717982947 | BQ7: 0.08938741748 | BR7: 0.11175 | BS7: 0.143631114 | BT7: 0.198 | BU7: 0.3500548 | CB7: 4239.937219 | CC7: 12 | CE7: 2331.965471 | CF7: 12 | CH7: 635.9905829 | CI7: 12 | CJ7: 1695.974888 | CP7: 500 | CQ7: 10.92180037 | CR7: 13.13589089 | CS7: 15.15795343 | CT7: 17.03908126 | CU7: 18.81055899 | CV7: 20.49327992 | CW7: 22.10206317 | CX7: 23.64789608 | CY7: 25.13920737 | CZ7: 26.58264025 | DA7: 27.98354704 | DB7: 29.3463195 | DC7: 30.67461707 | DD7: 37.5617397
A8: 600 | B8: 0.01530833367 | C8: 0.03024946476 | D8: 0.05277102595 | E8: 0.08447559171 | F8: 0.1269798709 | G8: 0.1819127568 | H8: 0.2509138624 | I8: 0.3356323784 | J8: 0.4377261565 | K8: 0.5588609569 | L8: 0.7007098196 | M8: 0.8649525301 | N8: 1.05327516 | O8: 1.273910839 | AD8: 4941.965036 | AE8: 0.06 | AG8: 2718.08077 | AH8: 0.06 | AJ8: 741.2947554 | AK8: 0.06 | AL8: 1976.786014 | AS8: 600 | AT8: 0.01697193557 | AU8: 0.03597264765 | AV8: 0.06335706417 | AW8: 0.0993663231 | AX8: 0.1439908543 | AY8: 0.1970754133 | AZ8: 0.2583851661 | BA8: 0.3276466048 | BB8: 0.404572427 | BC8: =IF(0.95*$AS8>10^((LOG10(1/($AN$1*BC$1^$AN$3+$AN$4*$AS8*BC$1^$AN$2))-$Y$1-$Z$1)/$Y$2),#N/A, 1/($AN$1*BC$1^$AN$3+$AN$4*$AS8*BC$1^$AN$2)) -> 0.488876298 | BD8: 0.5802812749 | BE8: 0.6785242971 | BF8: 0.7833582587 | BL8: 600 | BM8: 0.02775266325 | BN8: 0.04256251139 | BO8: 0.0566426048 | BP8: 0.0717982947 | BQ8: 0.08938741748 | BR8: 0.11175 | BS8: 0.143631114 | BT8: 0.198 | BU8: 0.3500548 | CB8: 3176.445795 | CC8: 14 | CE8: 1747.045187 | CF8: 14 | CH8: 476.4668693 | CI8: 14 | CJ8: 1270.578318 | CP8: 600 | CQ8: 10.36122827 | CR8: 12.46167842 | CS8: 14.37995662 | CT8: 16.16453373 | CU8: 17.84508863 | CV8: 19.44144226 | CW8: 20.96765313 | CX8: 22.43414465 | CY8: 23.84891294 | CZ8: 25.2182602 | DA8: 26.54726408 | DB8: 27.84009091 | DC8: 29.10021231 | DD8: 34.07843068
A9: 700 | B9: 0.01580425007 | C9: 0.03122940194 | D9: 0.05448055341 | E9: 0.08721219462 | F9: 0.131093408 | G9: 0.1878058552 | H9: 0.2590422648 | I9: 0.3465052534 | J9: 0.4519063788 | K9: 0.5769653642 | L9: 0.7234094479 | M9: 0.8929728324 | O9: 1.01889197 | AD9: 4443.242169 | AE9: 0.07 | AG9: 2443.783193 | AH9: 0.07 | AJ9: 666.4863253 | AK9: 0.07 | AL9: 1777.296867 | AS9: 700 | AT9: 0.01648943359 | AU9: 0.03461397684 | AV9: 0.06042740157 | AW9: 0.09401670673 | AX9: 0.1352624484 | AY9: 0.1839379779 | AZ9: 0.2397675365 | BA9: 0.3024595165 | BB9: 0.371724927 | BC9: 0.4472871359 | BD9: 0.5288865216 | BE9: 0.6162822018 | BF9: 0.7092521256 | BL9: 700 | BM9: 0.02775266325 | BN9: 0.04256251139 | BO9: 0.0566426048 | BP9: 0.0717982947 | BQ9: 0.08938741748 | BR9: 0.11175 | BS9: 0.143631114 | BT9: 0.198 | BU9: 0.3500548 | CB9: 2473.429038 | CC9: 16 | CE9: 1360.385971 | CF9: 16 | CH9: 371.0143557 | CI9: 16 | CJ9: 989.3716151 | CP9: 700 | CQ9: 9.909778505 | CR9: 11.9187098 | CS9: 13.75340657 | CT9: 15.46022775 | CU9: 17.06755908 | CV9: 18.59435788 | CW9: 20.05407012 | CX9: 21.45666504 | CY9: 22.80979036 | CZ9: 24.11947371 | DA9: 25.39057147 | DB9: 26.62706845 | DC9: 27.83228502 | DD9: 31.38658745
A10: 800 | B10: 0.01624679946 | C10: 0.03210388526 | D10: 0.05600611369 | E10: 0.08965430381 | F10: 0.1347642756 | G10: 0.1930647804 | H10: 0.2662959465 | I10: 0.3562080669 | J10: 0.4645606266 | K10: 0.5931215041 | L10: 0.7436663038 | O10: 0.8396406994 | AD10: 4052.098531 | AE10: 0.08 | AG10: 2228.654192 | AH10: 0.08 | AJ10: 607.8147797 | AK10: 0.08 | AL10: 1620.839413 | AS10: 800 | AT10: 0.01603360771 | AU10: 0.03335420349 | AV10: 0.05775670251 | AW10: 0.08921368136 | AX10: 0.1275317565 | AY10: 0.1724426135 | AZ10: 0.2236525253 | BA10: 0.2808683967 | BB10: 0.3438107105 | BC10: 0.4122192595 | BD10: 0.4858549815 | BE10: 0.5644997561 | BF10: 0.6479551984 | BH10: 10 | BI10: 0.02775266325 | BJ10: =$BJ$4/(1+EXP($BJ$2-$BJ$3*LOG10(BI10))) -> 0.1000747999 | BL10: 800 | BM10: 0.02775266325 | BN10: 0.04256251139 | BO10: 0.0566426048 | BP10: 0.0717982947 | BQ10: 0.08938741748 | BR10: 0.11175 | BS10: 0.143631114 | BT10: 0.198 | BU10: 0.3500548 | CB10: 1983.674567 | CC10: 18 | CE10: 1091.021012 | CF10: 18 | CH10: 297.551185 | CI10: 18 | CJ10: 793.4698267 | CP10: 800 | CQ10: 9.534645685 | CR10: 11.46752926 | CS10: 13.23277393 | CT10: 14.87498371 | CU10: 16.42146981 | CV10: 17.89047192 | CW10: 19.29492703 | CX10: 20.64442698 | CY10: 21.94632999 | CZ10: 23.20643552 | DA10: 24.42941611 | DB10: 25.61910573 | DC10: 26.77869905 | DD10: 29.2272942
A11: 900 | B11: 0.01664743062 | C11: 0.03289553759 | D11: 0.05738717301 | E11: 0.0918650966 | F11: 0.1380874389 | G11: 0.1978255806 | H11: 0.2728625599 | I11: 0.3649918307 | J11: 0.476016265 | K11: 0.6077473357 | O11: 0.707896329 | AD11: 3735.767736 | AE11: 0.09 | AG11: 2054.672255 | AH11: 0.09 | AJ11: 560.3651604 | AK11: 0.09 | AL11: 1494.307094 | AS11: 900 | AT11: 0.01560230517 | AU11: 0.0321829087 | AV11: 0.05531208422 | AW11: 0.08487754761 | AX11: 0.1206369592 | AY11: 0.1622995608 | AZ11: 0.2095673014 | BA11: 0.2621544597 | BB11: 0.3197960294 | BC11: 0.3822503493 | BD11: 0.4492988916 | BE11: 0.5207447421 | BF11: 0.5964105725 | BH11: 20 | BI11: 0.04256251139 | BJ11: =$BJ$4/(1+EXP($BJ$2-$BJ$3*LOG10(BI11))) -> 0.1999995989 | BL11: 900 | BM11: 0.02775266325 | BN11: 0.04256251139 | BO11: 0.0566426048 | BP11: 0.0717982947 | BQ11: 0.08938741748 | BR11: 0.11175 | BS11: 0.143631114 | BT11: 0.198 | BU11: 0.3500548 | CB11: 1628.352544 | CC11: 20 | CE11: 895.593899 | CF11: 20 | CH11: 244.2528815 | CI11: 20 | CJ11: 651.3410174 | CP11: 900 | CQ11: 9.215559988 | CR11: 11.08375784 | CS11: 12.78992696 | CT11: 14.37717868 | CU11: 15.8719102 | CV11: 17.29175081 | CW11: 18.64920453 | CX11: 19.95354222 | CY11: 21.21187585 | CZ11: 22.42981079 | DA11: 23.61186321 | DB11: 24.76173877 | DC11: 25.88252523 | DD11: 27.4463082
A12: 1000 | B12: 0.0170141714 | C12: 0.0336202221 | D12: 0.05865140515 | E12: 0.09388887302 | F12: 0.1411294876 | G12: 0.202183653 | H12: 0.2788736875 | I12: 0.3730325544 | J12: 0.4865028429 | K12: 0.6211359323 | O12: 0.6076641879 | AD12: 3473.784112 | AE12: 0.1 | AG12: 1910.581261 | AH12: 0.1 | AJ12: 521.0676167 | AK12: 0.1 | AL12: 1389.513645 | AS12: 1000 | AT12: 0.01519359879 | AU12: 0.03109108743 | AV12: 0.05306600505 | AW12: 0.08094338272 | AX12: 0.1144494363 | AY12: 0.1532834479 | AZ12: 0.1971510891 | BA12: 0.2457785206 | BB12: 0.2989171019 | BC12: 0.3563436716 | BD12: 0.417858879 | BE12: 0.4832847918 | BF12: 0.5524623702 | BH12: 30 | BI12: 0.0566426048 | BJ12: 0.2997736424 | BL12: 1000 | BM12: 0.02775266325 | BN12: 0.04256251139 | BO12: 0.0566426048 | BP12: 0.0717982947 | BQ12: 0.08938741748 | BR12: 0.11175 | BS12: 0.143631114 | BT12: 0.198 | BU12: 0.3500548 | CB12: 1362.082666 | CC12: 22 | CE12: 749.1454662 | CF12: 22 | CH12: 204.3123999 | CI12: 22 | CJ12: 544.8330663 | CP12: 1000 | CQ12: 8.939187357 | CR12: 10.75135836 | CS12: 12.40635985 | CT12: 13.94601023 | CU12: 15.39591508 | CV12: 16.77317498 | CW12: 18.08991896 | CX12: 19.35513985 | CY12: 20.57573633 | CZ12: 21.75714566 | DA12: 22.90374859 | DB12: 24.01913963 | DC12: 25.10631395 | DD12: 25.94532238
A13: 1100 | B13: 0.01735288394 | C13: 0.03428952244 | D13: 0.05981901806 | E13: 0.09575798187 | F13: 0.1439390471 | G13: 0.2062086587 | H13: 0.2844254133 | I13: 0.380458764 | J13: 0.4961879817 | O13: 0.5292764288 | AD13: 2153.09579 | AE13: 0.2 | AG13: 1184.202684 | AH13: 0.2 | AJ13: 322.9643684 | AK13: 0.2 | AL13: 861.2383158 | AS13: 1100 | AT13: 0.01480575817 | AU13: 0.03007091656 | AV13: 0.05099522236 | AW13: 0.07735776765 | AX13: 0.1088656681 | AY13: 0.1452163467 | AZ13: 0.1861238298 | BA13: 0.2313281981 | BB13: 0.2805973858 | BC13: 0.3337257083 | BD13: 0.3905311792 | BE13: 0.4508525594 | BF13: 0.5145465502 | BH13: 40 | BI13: 0.0717982947 | BJ13: 0.399914624 | BL13: 1100 | BM13: 0.02775266325 | BN13: 0.04256251139 | BO13: 0.0566426048 | BP13: 0.0717982947 | BQ13: 0.08938741748 | BR13: 0.11175 | BS13: 0.143631114 | BT13: 0.198 | BU13: 0.3500548 | CB13: 1157.205407 | CC13: 24 | CE13: 636.4629738 | CF13: 24 | CH13: 173.580811 | CI13: 24 | CJ13: 462.8821627 | CP13: 1100 | CQ13: 8.696324891 | CR13: 10.4592623 | CS13: 12.06930022 | CT13: 13.56712093 | CU13: 14.97763435 | CV13: 16.31747644 | CW13: 17.59844673 | CX13: 18.82929373 | CY13: 20.01672868 | CZ13: 21.16604114 | DA13: 22.28149282 | DB13: 23.3665806 | DC13: 24.42421824 | DD13: 24.65835461
A14: 1200 | B14: 0.01766798873 | C14: 0.03491217358 | D14: 0.06090525015 | E14: 0.0974968167 | F14: 0.1465527846 | G14: 0.2099531278 | H14: 0.2895901923 | I14: 0.3873673781 | O14: 0.4665778409 | AD14: 1627.584518 | AE14: 0.3 | AG14: 895.1714851 | AH14: 0.3 | AJ14: 244.1376778 | AK14: 0.3 | AL14: 651.0338073 | AS14: 1200 | AT14: 0.01443722518 | AU14: 0.0291155671 | AV14: 0.04907998521 | AW14: 0.07407634726 | AX14: 0.1038013973 | AY14: 0.1379559129 | AZ14: 0.1762648039 | BA14: 0.2184827079 | BB14: 0.2643935149 | BC14: 0.3138076081 | BD14: 0.3665584915 | BE14: 0.4224995009 | BF14: 0.4815008607 | BH14: 50 | BI14: 0.08938741748 | BJ14: 0.4996204171 | BL14: 1200 | BM14: 0.02775266325 | BN14: 0.04256251139 | BO14: 0.0566426048 | BP14: 0.0717982947 | BQ14: 0.08938741748 | BR14: 0.11175 | BS14: 0.143631114 | BT14: 0.198 | BU14: 0.3500548 | CB14: 996.0638901 | CC14: 26 | CE14: 547.8351396 | CF14: 26 | CH14: 149.4095835 | CI14: 26 | CJ14: 398.4255561 | CP14: 1200 | CQ14: 8.480374811 | CR14: 10.19953436 | CS14: 11.76959128 | CT14: 13.2302176 | CU14: 14.60570467 | CV14: 15.91227535 | CW14: 17.16143615 | CX14: 18.36171834 | CY14: 19.51966651 | CZ14: 20.64043885 | DA14: 21.72819126 | DB14: 22.78633377 | DD14: 23.53926834
A15: 1300 | B15: 0.01796290744 | C15: 0.03549493675 | D15: 0.06192189658 | E15: 0.09912425917 | F15: 0.1489990822 | G15: 0.2134577205 | H15: 0.2944241078 | I15: 0.3938334161 | O15: 0.4154810528 | AD15: 1334.516288 | AE15: 0.4 | AG15: 733.9839586 | AH15: 0.4 | AJ15: 200.1774432 | AK15: 0.4 | AL15: 533.8065153 | AS15: 1300 | AT15: 0.01408659307 | AU15: 0.02821905118 | AV15: 0.04730340244 | AW15: 0.0710619861 | AX15: 0.09918734776 | AY15: 0.1313869143 | AZ15: 0.1673977054 | BA15: 0.2069887689 | BB15: 0.2499589453 | BC15: 0.2961331819 | BD15: 0.345358708 | BE15: 0.3975015613 | BH15: 60 | BI15: 0.11175 | BJ15: 0.5995375035 | BL15: 1300 | BM15: 0.02775266325 | BN15: 0.04256251139 | BO15: 0.0566426048 | BP15: 0.0717982947 | BQ15: 0.08938741748 | BR15: 0.11175 | BS15: 0.143631114 | BT15: 0.198 | BU15: 0.3500548 | CB15: 866.9468576 | CC15: 28 | CE15: 476.8207717 | CF15: 28 | CH15: 130.0420286 | CI15: 28 | CJ15: 346.778743 | CP15: 1300 | CQ15: 8.286458677 | CR15: 9.966307139 | CS15: 11.50046242 | CT15: 12.92768938 | CU15: 14.27172393 | CV15: 15.54841797 | CW15: 16.76901489 | CX15: 17.94185088 | CY15: 19.07332088 | CZ15: 20.16846512 | DA15: 21.23134449 | DB15: 22.26529102 | DD15: 22.55471352
A16: 1400 | B16: 0.0182403466 | C16: 0.0360431601 | D16: 0.06287828735 | E16: 0.1006552447 | F16: 0.15130039 | G16: 0.2167545994 | H16: 0.2989715218 | O16: 0.3731755795 | AD16: 1144.05448 | AE16: 0.5 | AG16: 629.2299641 | AH16: 0.5 | AJ16: 171.608172 | AK16: 0.5 | AL16: 457.6217921 | AS16: 1400 | AT16: 0.0137525885 | AU16: 0.02737609641 | AV16: 0.04565094312 | AW16: 0.06828335693 | AX16: 0.09496603656 | AY16: 0.1254150687 | AZ16: 0.1593800061 | BA16: 0.1966437346 | BB16: 0.2370188938 | BC16: 0.2803435357 | BD16: 0.3264770224 | BE16: 0.3752964734 | BH16: 70 | BI16: 0.143631114 | BJ16: 0.6998159227 | BL16: 1400 | BM16: 0.02775266325 | BN16: 0.04256251139 | BO16: 0.0566426048 | BP16: 0.0717982947 | BQ16: 0.08938741748 | BR16: 0.11175 | BS16: 0.143631114 | BT16: 0.198 | BU16: 0.3500548 | CB16: 761.832395 | CC16: 30 | CE16: 419.0078173 | CF16: 30 | CH16: 114.2748593 | CI16: 30 | CJ16: 304.732958 | CP16: 1400 | CQ16: 8.110875835 | CR16: 9.755129771 | CS16: 11.25677763 | CT16: 12.65376291 | CU16: 13.96931853 | CV16: 15.21896054 | CW16: 16.41369407 | CX16: 17.56167868 | CY16: 18.66917382 | CZ16: 19.74111291 | DA16: 20.78147079 | DD16: 21.67990984
A17: 1500 | B17: 0.01850248655 | C17: 0.03656115203 | D17: 0.06378193856 | E17: 0.102101805 | F17: 0.1534747937 | G17: 0.219869674 | H17: 0.3032681716 | O17: 0.3376713932 | AD17: 1008.797686 | AE17: 0.6 | AG17: 554.8387273 | AH17: 0.6 | AJ17: 151.3196529 | AK17: 0.6 | AL17: 403.5190744 | AS17: 1500 | AT17: 0.01343405611 | AU17: 0.0265820421 | AV17: 0.04411003824 | AW17: 0.0657138479 | AX17: 0.09108936706 | AY17: 0.1199624901 | AZ17: 0.1520952356 | BA17: 0.1872835424 | BB17: 0.2253526769 | BC17: 0.2661524446 | BD17: 0.3095529344 | BE17: 0.3554409596 | BH17: 80 | BI17: 0.198 | BJ17: 0.7995492917 | BL17: 1500 | BM17: 0.02775266325 | BN17: 0.04256251139 | BO17: 0.0566426048 | BP17: 0.0717982947 | BQ17: 0.08938741748 | BR17: 0.11175 | BS17: 0.143631114 | BT17: 0.198 | BU17: 0.3500548 | CB17: 675.0726031 | CC17: 32 | CE17: 371.2899317 | CF17: 32 | CH17: 101.2608905 | CI17: 32 | CJ17: 270.0290413 | CP17: 1500 | CQ17: 7.950757878 | CR17: 9.562552363 | CS17: 11.03455598 | CT17: 12.40396317 | CU17: 13.69354822 | CV17: 14.91852087 | CW17: 16.089669 | CX17: 17.21499108 | CY17: 18.300623 | CZ17: 19.35140079 | DA17: 20.37122081 | DD17: 20.89601253
A18: 1600 | B18: 0.01875111138 | C18: 0.03705243791 | D18: 0.06463900033 | E18: 0.1034737851 | F18: 0.1555370919 | G18: 0.2228241451 | H18: 0.3073432995 | O18: 0.3075236764 | AD18: 906.993956 | AE18: 0.7 | AG18: 498.8466758 | AH18: 0.7 | AJ18: 136.0490934 | AK18: 0.7 | AL18: 362.7975824 | AS18: 1600 | AT18: 0.01312994516 | AU18: 0.02583275306 | AV18: 0.04266976039 | AW18: 0.06333070753 | AX18: 0.08751678812 | AY18: 0.1149642731 | AZ18: 0.1454472868 | BA18: 0.1787739475 | BB18: 0.2147810219 | BC18: 0.2533288469 | BD18: 0.2942970108 | BH18: 90 | BI18: 0.3500548 | BJ18: 0.9002097124 | BL18: 1600 | BM18: 0.02775266325 | BN18: 0.04256251139 | BO18: 0.0566426048 | BP18: 0.0717982947 | BQ18: 0.08938741748 | BR18: 0.11175 | BS18: 0.143631114 | BT18: 0.198 | BU18: 0.3500548 | CB18: 602.5955271 | CC18: 34 | CE18: 331.4275399 | CF18: 34 | CH18: 90.38932907 | CI18: 34 | CJ18: 241.0382108 | CP18: 1600 | CQ18: 7.80384014 | CR18: 9.385851149 | CS18: 10.83065441 | CT18: 12.17475707 | CU18: 13.44051258 | CV18: 14.64284962 | CW18: 15.79235674 | CX18: 16.89688461 | CY18: 17.96245572 | CZ18: 18.99381676 | DA18: 19.99479208 | DD18: 20.18840385
A19: 1700 | B19: 0.01898770079 | C19: 0.03751994164 | D19: 0.06545457348 | E19: 0.1047793505 | F19: 0.1574995585 | G19: 0.2256355962 | O19: 0.28166051 | AD19: 827.1502514 | AE19: 0.8 | AG19: 454.9326383 | AH19: 0.8 | AJ19: 124.0725377 | AK19: 0.8 | AL19: 330.8601006 | AS19: 1700 | AT19: 0.01283929793 | AU19: 0.02512454758 | AV19: 0.04132056425 | AW19: 0.06111436919 | AX19: 0.08421387023 | AY19: 0.1103658965 | AZ19: 0.1393561522 | BA19: 0.1710040436 | BB19: 0.2051567884 | BC19: 0.2416841651 | BD19: 0.2804741959 | BI19: 0.025 | BJ19: 0.08356810995 | BL19: 1700 | BM19: 0.02775266325 | BN19: 0.04256251139 | BO19: 0.0566426048 | BP19: 0.0717982947 | BQ19: 0.08938741748 | BR19: 0.11175 | BS19: 0.143631114 | BT19: 0.198 | BU19: 0.3500548 | CB19: 541.4039915 | CC19: 36 | CE19: 297.7721953 | CF19: 36 | CH19: 81.21059872 | CI19: 36 | CJ19: 216.5615966 | CP19: 1700 | CQ19: 7.668305915 | CR19: 9.222841139 | CS19: 10.64255159 | CT19: 11.96331036 | CU19: 13.2070827 | CV19: 14.38853799 | CW19: 15.51808089 | CX19: 16.60342573 | CY19: 17.65049039 | CZ19: 18.66393914 | DC19: =IF($CN$1*DC$1^$CN$2*$CP19^$CN$3>$DD19,#N/A,$CN$1*DC$1^$CN$2*$CP19^$CN$3) ->  | DD19: 19.54554906
A20: 1800 | B20: =IF(10^($R$1+$R$2*LOG10(B$1)+$R$3*LOG10($A20))>1.05*$O20,#N/A,10^($R$1+$R$2*LOG10(B$1)+$R$3*LOG10($A20))) -> 0.01921349657 | C20: 0.037966117 | D20: 0.06623293871 | E20: 0.1060253536 | F20: 0.1593724938 | G20: 0.2283187839 | O20: 0.2592714738 | AD20: 762.5780069 | AE20: 0.9 | AG20: 419.4179038 | AH20: 0.9 | AJ20: 114.386701 | AK20: 0.9 | AL20: 305.0312028 | AS20: 1800 | AT20: 0.01256123969 | AU20: 0.02445413688 | AV20: 0.04005407476 | AW20: 0.05904791269 | AX20: 0.08115119242 | AY20: 0.1061212269 | AZ20: 0.1337546877 | BA20: 0.1638814021 | BB20: 0.1963580781 | BC20: 0.2310629714 | BD20: 0.2678916141 | BL20: 1800 | BM20: 0.02775266325 | BN20: =BN19 -> 0.04256251139 | BO20: =BO19 -> 0.0566426048 | BP20: =BP19 -> 0.0717982947 | BQ20: =BQ19 -> 0.08938741748 | BR20: =BR19 -> 0.11175 | BS20: =BS19 -> 0.143631114 | BT20: =BT19 -> 0.198 | BU20: =BU19 -> 0.3500548 | CB20: 489.2513321 | CC20: 38 | CE20: 269.0882327 | CF20: 38 | CH20: 73.38769981 | CI20: 38 | CJ20: 195.7005328 | CP20: 1800 | CQ20: 7.542677444 | CR20: 9.071744998 | CS20: 10.46819659 | CT20: 11.76731761 | CU20: 12.99071345 | CV20: 14.15281317 | CW20: 15.26385098 | CX20: 16.33141481 | CY20: 17.3613256 | CZ20: 18.35817119 | DD20: 18.95820908
A21: 1900 | B21: 0.01942955172 | C21: 0.03839304476 | D21: 0.06697772598 | E21: 0.1072176053 | F21: 0.1611646324 | G21: 0.2308862213 | O21: 0.2397335831 | AD21: 709.0995886 | AE21: 1 | AG21: 390.0047737 | AH21: 1 | AJ21: 106.3649383 | AK21: 1 | AL21: 283.6398354 | AS21: 1900 | AT21: 0.01229496986 | AU21: 0.02381857412 | AV21: 0.03886291312 | AW21: 0.05711663145 | AX21: 0.07830346343 | AY21: 0.1021909649 | AZ21: 0.1285861278 | BA21: 0.1573283778 | BB21: 0.1882830444 | BC21: 0.2213360096 | BD21: 0.2563895149 | BL21: 1900 | BM21: 0.02775266325 | BN21: 0.04256251139 | BO21: 0.0566426048 | BP21: 0.0717982947 | BQ21: 0.08938741748 | BR21: 0.11175 | BS21: 0.143631114 | BT21: 0.198 | BU21: 0.3500548 | CB21: 444.4260068 | CC21: 40 | CE21: 244.4343038 | CF21: 40 | CH21: 66.66390102 | CI21: 40 | CJ21: 177.7704027 | CP21: 1900 | CQ21: 7.425737865 | CR21: 8.93109918 | CS21: 10.30590057 | CT21: 11.58488038 | CU21: 12.78930903 | CV21: 13.93339188 | CW21: 15.02720447 | CX21: 16.07821708 | CY21: 17.09216042 | CZ21: 18.0735512 | DD21: 18.41888549
A22: 2000 | B22: 0.01963676746 | C22: 0.03880250573 | D22: 0.06769204194 | E22: 0.1083610787 | F22: 0.1628834496 | G22: 0.2333486177 | O22: 0.222560823 | AS22: 2000 | AT22: 0.01203975434 | AU22: 0.02321521103 | AV22: 0.03774055293 | AW22: 0.05530768201 | AX22: 0.07564882169 | AY22: 0.0985414253 | AZ22: 0.1238021545 | BA22: 0.1512792674 | BB22: 0.1808459326 | BC22: 0.2123949094 | BL22: 2000 | BM22: 0.02775266325 | BN22: 0.04256251139 | BO22: 0.0566426048 | BP22: 0.0717982947 | BQ22: 0.08938741748 | BR22: 0.11175 | BS22: 0.143631114 | BT22: 0.198 | BU22: 0.3500548 | CB22: 405.6051642 | CC22: 42 | CE22: =CE$1*CB22 -> 223.0828403 | CF22: =CC22 -> 42 | CH22: =CH$1*CB22 -> 60.84077464 | CI22: =CC22 -> 42 | CJ22: =CB22*CJ$1 -> 162.2420657 | CP22: 2000 | CQ22: 7.316474195 | CR22: 8.799685347 | CS22: 10.15425766 | CT22: 11.41441833 | CU22: 12.60112479 | CV22: 13.7283734 | CW22: 14.80609142 | CX22: 15.84163924 | CY22: 16.84066324 | CZ22: 17.80761365 | DD22: 17.92142108
A23: 2100 | B23: 0.01983592146 | C23: 0.0391960366 | D23: 0.0683785674 | E23: 0.1094600652 | F23: 0.1645353961 | O23: 0.2073690047 | AS23: 2100 | AT23: 0.01179491874 | AU23: 0.02264166106 | AV23: 0.03668120056 | AW23: 0.05360979802 | AX23: 0.07316827302 | AY23: 0.09514356893 | AZ23: 0.1193613826 | BA23: 0.1456780979 | BB23: 0.1739740219 | BC23: 0.2041481316 | BL23: 2100 | BM23: 0.02775266325 | BN23: 0.04256251139 | BO23: 0.0566426048 | BP23: 0.0717982947 | BQ23: 0.08938741748 | BR23: 0.11175 | BS23: 0.143631114 | BT23: 0.198 | BU23: 0.3500548 | CB23: 371.7530104 | CC23: 44 | CE23: 204.4641557 | CF23: 44 | CH23: 55.76295157 | CI23: 44 | CJ23: 148.7012042 | CP23: 2100 | CQ23: 7.214034942 | CR23: 8.676479392 | CS23: 10.0120861 | CT23: 11.25460303 | CU23: 12.42469421 | CV23: 13.53616001 | CW23: 14.59878871 | CX23: 15.61983764 | CY23: 16.60487412 | DD23: 17.46070682
A24: 2200 | B24: 0.02002768978 | C24: 0.03957497328 | D24: 0.06903963288 | E24: 0.1105182955 | F24: 0.1661260798 | O24: 0.1938508142 | AS24: 2200 | AT24: 0.01155984243 | AU24: 0.02209576781 | AV24: 0.0356796951 | AW24: 0.05201305538 | AX24: 0.07084523546 | AY24: 0.09197222834 | AZ24: 0.115228159 | BA24: 0.1404768903 | BB24: 0.1676052404 | BC24: 0.1965178225 | BL24: 2200 | BM24: 0.02775266325 | BN24: 0.04256251139 | BO24: 0.0566426048 | BP24: 0.0717982947 | BQ24: 0.08938741748 | BR24: 0.11175 | BS24: 0.143631114 | BT24: 0.198 | BU24: 0.3500548 | CB24: 342.0489458 | CC24: 46 | CE24: 188.1269202 | CF24: 46 | CH24: 51.30734187 | CI24: 46 | CJ24: 136.8195783 | CP24: 2200 | CQ24: 7.117698077 | CR24: 8.560612914 | CS24: 9.878383808 | CT24: 11.10430806 | CU24: 12.25877374 | CV24: 13.35539692 | CW24: 14.40383519 | CX24: 15.41124894 | CY24: 16.38313116 | DD24: 17.03246348
A25: 2300 | B25: 0.0202126641 | C25: 0.03994048492 | D25: 0.06967727803 | E25: 0.1115390346 | F25: 0.1676604085 | O25: 0.181757784 | AS25: 2300 | AT25: 0.01133395331 | AU25: 0.02157557795 | AV25: 0.03473142432 | AW25: 0.05050867814 | AX25: 0.06866516809 | AY25: 0.08900548339 | AZ25: 0.1113716041 | BA25: 0.1356342815 | BB25: 0.1616862841 | BC25: 0.1894373485 | BL25: 2300 | BM25: 0.02775266325 | BN25: 0.04256251139 | BO25: 0.0566426048 | BP25: 0.0717982947 | BQ25: 0.08938741748 | BR25: 0.11175 | BS25: 0.143631114 | BT25: 0.198 | BU25: 0.3500548 | CB25: 315.835892 | CC25: 48 | CE25: 173.7097406 | CF25: 48 | CH25: 47.3753838 | CI25: 48 | CJ25: 126.3343568 | CP25: 2300 | CQ25: 7.0268465 | CR25: 8.451343713 | CS25: 9.752294342 | CT25: 10.96257068 | CU25: 12.10230055 | CV25: 13.18492623 | CW25: 14.21998205 | CX25: 15.21453699 | CY25: 16.17401393 | DD25: 16.63307627
A26: 2400 | B26: 0.02039136541 | C26: 0.04029360101 | D26: 0.0702932988 | E26: 0.1125251576 | F26: 0.1691427037 | O26: 0.1708870628 | AS26: 2400 | AT26: 0.01111672311 | AU26: 0.02107931788 | AV26: 0.03383225358 | AW26: 0.04908887711 | AX26: 0.06661526638 | AY26: 0.08622415388 | AZ26: 0.107764838 | BA26: 0.1311144216 | BB26: 0.1561711222 | BC26: 0.1828493454 | BL26: 2400 | BM26: 0.02775266325 | BN26: 0.04256251139 | BO26: 0.0566426048 | BP26: 0.0717982947 | BQ26: 0.08938741748 | BR26: 0.11175 | BS26: 0.143631114 | BT26: 0.198 | BU26: 0.3500548 | CB26: 292.5825676 | CC26: 50 | CE26: 160.9204122 | CF26: 50 | CH26: 43.88738514 | CI26: 50 | CJ26: 117.033027 | CP26: 2400 | CQ26: 6.940948992 | CR26: 8.348032879 | CS26: 9.633080441 | CT26: 10.82856213 | CU26: 11.95435972 | CV26: 13.02375119 | CW26: 14.04615428 | CX26: 15.0285516 | CY26: 15.9762997 | DD26: 16.25946803
A27: 2500 | B27: 0.02056425501 | C27: 0.0406352331 | D27: 0.0708892854 | E27: 0.1134792099 | O27: 0.1610715653 | AS27: 2500 | AT27: 0.01090766332 | AU27: 0.02060537349 | AV27: 0.03297846564 | AW27: 0.04774671498 | AX27: 0.06468421055 | AY27: 0.0836113844 | AZ27: 0.1043843537 | BA27: 0.1268860855 | BB27: 0.151019797 | BL27: 2500 | BM27: 0.02775266325 | BN27: 0.04256251139 | BO27: 0.0566426048 | BP27: 0.0717982947 | BQ27: 0.08938741748 | BR27: 0.11175 | BS27: 0.143631114 | BT27: 0.198 | BU27: 0.3500548 | CB27: 271.8555628 | CC27: 52 | CE27: 149.5205596 | CF27: 52 | CH27: 40.77833443 | CI27: 52 | CJ27: 108.7422251 | CP27: 2500 | CQ27: 6.859545261 | CR27: 8.250126811 | CS27: 9.520103283 | CT27: 10.70156431 | CU27: 11.81415851 | CV27: 12.87100811 | CW27: 13.88142041 | CX27: 14.85229613 | CY27: 15.78892901 | DD27: 15.90900082
A28: 2600 | B28: 0.02073174344 | C28: 0.04096619238 | D28: 0.07146665301 | E28: 0.114403457 | O28: 0.1521725435 | AS28: 2600 | AT28: 0.0107063215 | AU28: 0.02015227265 | AV28: 0.03216670924 | AW28: 0.04647599295 | AX28: 0.06286195637 | AY28: 0.08115230246 | AZ28: 0.1012095043 | BA28: 0.1229219501 | BB28: 0.1461974545 | BL28: 2600 | BM28: 0.02775266325 | BN28: 0.04256251139 | BO28: 0.0566426048 | BP28: 0.0717982947 | BQ28: 0.08938741748 | BR28: 0.11175 | BS28: 0.143631114 | BT28: 0.198 | BU28: 0.3500548 | CB28: 121.297121 | CC28: 80 | CE28: 66.71341656 | CF28: 80 | CH28: 18.19456815 | CI28: 80 | CJ28: 48.51884841 | CP28: 2600 | CQ28: 6.782234073 | CR28: 8.157142936 | CS28: 9.412806012 | CT28: 10.58095127 | CU28: 11.68100586 | CV28: 12.72594413 | CW28: 13.72496848 | CX28: 14.68490185 | DD28: 15.57939856
A29: 2700 | B29: 0.02089419775 | C29: 0.04128720421 | D29: 0.07202666699 | E29: 0.1152999246 | O29: 0.144073917 | AS29: 2700 | AT29: 0.010512278 | AU29: 0.01971866993 | AV29: 0.03139395515 | AW29: 0.045271155 | AX29: 0.06113956047 | AY29: 0.07883373525 | AZ29: 0.0982220804 | BA29: 0.1191980033 | BB29: 0.1416735549 | BL29: 2700 | BM29: 0.02775266325 | BN29: 0.04256251139 | BO29: 0.0566426048 | BP29: 0.0717982947 | BQ29: 0.08938741748 | BR29: 0.11175 | BS29: 0.143631114 | BT29: 0.198 | BU29: 0.3500548 | CP29: 2700 | CQ29: 6.708663743 | CR29: 8.068658272 | CS29: 9.310700535 | CT29: 10.46617433 | CU29: 11.55429607 | CV29: 12.58789936 | CW29: 13.57608679 | CX29: 14.52560728 | DD29: 15.26868576
A30: 2800 | B30: 0.02105194758 | C30: 0.04159891991 | D30: 0.07257046363 | E30: 0.1161704315 | O30: 0.1366778983 | AS30: 2800 | AT30: 0.01032514305 | AU30: 0.01930333327 | AV30: 0.03065745842 | AW30: 0.0441272067 | AX30: 0.05950903349 | AY30: 0.07664397355 | AZ30: 0.09540596099 | BA30: 0.1156930575 | BB30: 0.1374212249 | BL30: 2800 | BM30: 0.02775266325 | BN30: 0.04256251139 | BO30: 0.0566426048 | BP30: 0.0717982947 | BQ30: 0.08938741748 | BR30: 0.11175 | BS30: 0.143631114 | BT30: 0.198 | BU30: 0.3500548 | CP30: 2800 | CQ30: 6.63852444 | CR30: 7.984300182 | CS30: 9.213356851 | CT30: 10.35675013 | CU30: 11.43349552 | CV30: 12.45629246 | CW30: 13.43414835 | CX30: 14.37374157 | DD30: 14.97513838
A31: 2900 | B31: 0.02120529011 | C31: 0.04190192672 | D31: 0.07309906738 | E31: 0.1170166177 | O31: 0.129901583 | AS31: 2900 | AT31: 0.01014455416 | AU31: 0.01890513225 | AV31: 0.02995472576 | AW31: 0.04303964598 | AX31: 0.05796321623 | AY31: 0.07457257396 | AZ31: 0.09274682238 | BA31: 0.1123883455 | BB31: 0.1334167236 | BL31: 2900 | BM31: 0.02775266325 | BN31: 0.04256251139 | BO31: 0.0566426048 | BP31: 0.0717982947 | BQ31: 0.08938741748 | BR31: 0.11175 | BS31: 0.143631114 | BT31: 0.198 | BU31: 0.3500548 | CP31: 2900 | CQ31: 6.571541923 | CR31: 7.903738826 | CS31: 9.120394349 | CT31: 10.25225082 | CU31: 11.31813188 | CV31: 12.33060883 | CW31: 13.29859819 | CX31: 14.22871094 | DD31: 14.69724424
A32: 3000 | B32: 0.02135449427 | C32: 0.04219675607 | D32: 0.07361340532 | E32: 0.1178399673 | O32: 0.1236742672 | AS32: 3000 | AT32: 0.009970173751 | AU32: 0.01852302784 | AV32: 0.02928348737 | AW32: 0.04200440394 | AX32: 0.05649567452 | AY32: 0.07261019238 | AZ32: 0.09023189446 | BA32: 0.1092671852 | BB32: 0.129638999 | BL32: 3000 | BM32: 0.02775266325 | BN32: 0.04256251139 | BO32: 0.0566426048 | BP32: 0.0717982947 | BQ32: 0.08938741748 | BR32: 0.11175 | BS32: 0.143631114 | BT32: 0.198 | BU32: 0.3500548 | CP32: 3000 | CQ32: 6.507472383 | CR32: 7.826680973 | CS32: 9.031474659 | CT32: 10.15229604 | CU32: 11.20778525 | CV32: 12.21039101 | CW32: 13.16894292 | CX32: 14.08998749 | DD32: 14.4336707
A33: 3100 | B33: 0.02149980428 | C33: 0.04248389052 | D33: 0.07411431928 | E33: 0.1186418278 | O33: 0.1179353193 | AS33: 3100 | AT33: 0.009801687079 | AU33: 0.01815606338 | AV33: 0.02864167244 | AW33: 0.04101779394 | AX33: 0.05510060972 | AY33: 0.07074844302 | AZ33: 0.08784975568 | BA33: 0.1063146975 | BB33: 0.1260693178 | BL33: 3100 | BM33: 0.02775266325 | BN33: 0.04256251139 | BO33: 0.0566426048 | BP33: 0.0717982947 | BQ33: 0.08938741748 | BR33: 0.11175 | BS33: 0.143631114 | BT33: 0.198 | BU33: 0.3500548 | CP33: 3100 | CQ33: 6.446098188 | CR33: 7.752864872 | CS33: 8.946295738 | CT33: 10.05654627 | CU33: 11.1020808 | CV33: 12.09523064 | CW33: 13.04474212 | CX33: 13.95710001 | DD33: 14.18323821
A34: 3200 | B34: 0.0216414426 | C34: 0.04276376967 | D34: 0.07460257619 | O34: 0.1126324767 | AS34: 3200 | AT34: 0.009638800311 | AU34: 0.0178033565 | AV34: 0.02802738783 | AW34: 0.0400764678 | AX34: 0.05377278212 | AY34: 0.06897977867 | AZ34: 0.08559015955 | BA34: 0.103517569 | BL34: 3200 | BM34: 0.02775266325 | BN34: 0.04256251139 | BO34: 0.0566426048 | BP34: 0.0717982947 | BQ34: 0.08938741748 | BR34: 0.11175 | BS34: 0.143631114 | BT34: 0.198 | BU34: 0.3500548 | CP34: 3200 | CQ34: 6.387224333 | CR34: 7.682055985 | CS34: 8.864586942 | CT34: 9.964697277 | CU34: 11.00068267 | CV34: 11.98476182 | CW34: 12.92560117 | CX34: 13.82962626 | DD34: 13.94489847
A35: 3300 | B35: 0.02177961253 | C35: 0.04303679524 | D35: 0.07507887682 | O35: 0.1077204742 | AS35: 3300 | AT35: 0.009481238828 | AU35: 0.01746409214 | AV35: 0.02743889936 | AW35: 0.03917737776 | AX35: 0.05250744522 | AY35: 0.0672973884 | AZ35: 0.0834438874 | BA35: 0.1008638517 | BL35: 3300 | BM35: 0.02775266325 | BN35: 0.04256251139 | BO35: 0.0566426048 | BP35: 0.0717982947 | BQ35: 0.08938741748 | BR35: 0.11175 | BS35: 0.143631114 | BT35: 0.198 | BU35: 0.3500548 | CP35: 3300 | CQ35: 6.330675463 | CR35: =IF($CN$1*CR$1^$CN$2*$CP35^$CN$3>$DD35,#N/A,$CN$1*CR$1^$CN$2*$CP35^$CN$3) -> 7.614043408 | CS35: 8.786104906 | CT35: 9.876475486 | CU35: 10.90328885 | CV35: 11.87865552 | CW35: 12.81116521 | CX35: 13.70718657 | DD35: 13.71771625
A36: 3400 | B36: 0.02191450035 | C36: 0.0433033353 | D36: 0.07554386331 | O36: 0.1031599297 | AS36: 3400 | AT36: 0.00932874568 | AU36: 0.01713751616 | AV36: 0.02687461555 | AW36: 0.03831774357 | AX36: 0.05130028899 | AY36: 0.06569510994 | AZ36: 0.08140262257 | BA36: 0.09834279209 | BL36: 3400 | BM36: 0.02775266325 | BN36: 0.04256251139 | BO36: 0.0566426048 | BP36: 0.0717982947 | BQ36: 0.08938741748 | BR36: 0.11175 | BS36: 0.143631114 | BT36: 0.198 | BU36: 0.3500548 | CP36: 3400 | CQ36: 6.27629337 | CR36: 7.548636862 | CS36: 8.710630057 | CT36: 9.79163408 | CU36: 10.80962686 | CV36: 11.77661489 | CW36: 12.70111408 | DD36: 13.50085421
A37: 3500 | B37: 0.02204627719 | C37: 0.04356372804 | D37: 0.07599812563 | O37: 0.09891643431 | AS37: 3500 | AT37: 0.009181080185 | AU37: 0.01682292982 | AV37: 0.02633307317 | AW37: 0.03749502378 | AX37: 0.05014739087 | AY37: 0.06416735423 | AZ37: 0.07945884279 | BA37: 0.09594468543 | BL37: 3500 | BM37: 0.02775266325 | BN37: 0.04256251139 | BO37: 0.0566426048 | BP37: 0.0717982947 | BQ37: 0.08938741748 | BR37: 0.11175 | BS37: 0.143631114 | BT37: 0.198 | BU37: 0.3500548 | CP37: 3500 | CQ37: 6.223934869 | CR37: 7.485664135 | CS37: 8.637963674 | CT37: 9.709949676 | CU37: 10.71945009 | CV37: 11.67837125 | CW37: 12.59515803 | DD37: 13.29356014
A38: 3600 | B38: 0.0221751007 | C38: 0.04381828496 | D38: 0.0764422072 | O38: 0.09495980466 | AS38: 3600 | AT38: 0.009038016665 | AU38: 0.01651968477 | AV38: 0.02581292461 | AW38: 0.03670689059 | AX38: 0.04904517313 | AY38: 0.0627090403 | AZ38: 0.07760572751 | BA38: 0.09366075117 | BL38: 3600 | BM38: 0.02775266325 | BN38: 0.04256251139 | BO38: 0.0566426048 | BP38: 0.0717982947 | BQ38: 0.08938741748 | BR38: 0.11175 | BS38: 0.143631114 | BT38: 0.198 | BU38: 0.3500548 | CP38: 3600 | CQ38: 6.17346999 | CR38: 7.424968908 | CS38: 8.567925378 | CT38: 9.631219507 | CU38: 10.6325347 | CV38: 11.58368073 | CW38: 12.49303402 | DD38: 13.09515614
A39: 3700 | B39: 0.02230111642 | C39: 0.04406729364 | D39: 0.07687660971 | J39: =IF(10^($R$1+$R$2*LOG10(J$1)+$R$3*LOG10($A39))>1.05*$O39,#N/A,10^($R$1+$R$2*LOG10(J$1)+$R$3*LOG10($A39))) ->  | O39: 0.09126346429 | AS39: 3700 | AT39: 0.008899343289 | AU39: 0.01622717854 | AV39: 0.02531292667 | AW39: 0.03595120791 | AX39: 0.04799036587 | AY39: 0.06131553879 | AZ39: 0.07583707794 | BA39: 0.09148302539 | BL39: 3700 | BM39: 0.02775266325 | BN39: 0.04256251139 | BO39: 0.0566426048 | BP39: 0.0717982947 | BQ39: 0.08938741748 | BR39: 0.11175 | BS39: 0.143631114 | BT39: 0.198 | BU39: 0.3500548 | CP39: 3700 | CQ39: 6.124780429 | CR39: 7.366408896 | CS39: 8.50035098 | CT39: 9.555259011 | CU39: 10.54867693 | CV39: 11.49232137 | CW39: 12.39450267 | DD39: 12.9050295
A40: 3800 | B40: =IF(10^($R$1+$R$2*LOG10(B$1)+$R$3*LOG10($A40))>1.05*$O40,#N/A,10^($R$1+$R$2*LOG10(B$1)+$R$3*LOG10($A40))) -> 0.022424459 | C40: 0.04431102017 | D40: 0.07730179737 | O40: 0.08780392958 | AS40: 3800 | AT40: 0.008764861033 | AU40: 0.01594485063 | AV40: 0.02483193064 | AW40: 0.03522601199 | AX40: 0.04697997452 | AY40: 0.05998262292 | AZ40: 0.0741472478 | BA40: 0.08940426799 | BL40: 3800 | BM40: 0.02775266325 | BN40: 0.04256251139 | BO40: 0.0566426048 | BP40: 0.0717982947 | BQ40: 0.08938741748 | BR40: 0.11175 | BS40: 0.143631114 | BT40: 0.198 | BU40: 0.3500548 | CP40: 3800 | CQ40: 6.077758223 | CR40: 7.309854249 | CS40: 8.435090639 | CT40: 9.481899751 | CU40: 10.46769083 | CV40: 11.40409056 | CW40: 12.29934549 | DD40: 12.72262482
A41: 3900 | B41: 0.02254525331 | C41: 0.04454971128 | D41: 0.0777182006 | O41: 0.0845603802 | AS41: 3900 | AT41: 0.008634382724 | AU41: 0.01567217886 | AV41: 0.0243688735 | AW41: 0.03452949441 | AX41: 0.04601125154 | AY41: 0.05870642559 | AZ41: 0.07253108307 | BA41: 0.08741788233 | BL41: 3900 | BM41: 0.02775266325 | BN41: 0.04256251139 | BO41: 0.0566426048 | BP41: 0.0717982947 | BQ41: 0.08938741748 | BR41: 0.11175 | BS41: 0.143631114 | BT41: 0.198 | BU41: 0.3500548 | CP41: =A41 -> 3900 | CQ41: 6.032304597 | CR41: 7.255186168 | CS41: 8.372007272 | CT41: 9.410987631 | CU41: 10.38940629 | CV41: 11.31880299 | CW41: 12.20736259 | DD41: 12.54743737
A42: 4000 | B42: 0.02266361536 | C42: 0.04478359621 | D42: 0.07812621932 | O42: 0.08151429838 | AS42: 4000 | AT42: 0.00850773217 | AU42: 0.01540867617 | AV42: 0.02392277007 | AW42: 0.033859987 | AX42: 0.0450816714 | AY42: 0.05748340198 | AZ42: 0.07098386952 | BA42: 0.08551784528 | BL42: 4000 | BM42: 0.02775266325 | BN42: 0.04256251139 | BO42: 0.0566426048 | BP42: 0.0717982947 | BQ42: 0.08938741748 | BR42: 0.11175 | BS42: 0.143631114 | BT42: 0.198 | BU42: 0.3500548 | CP42: 4000 | CQ42: 5.988328973 | CR42: 7.202295712 | CS42: 8.310975167 | CT42: 9.342381338 | CU42: 10.3136673 | CV42: 11.23628868 | CW42: 12.11837066 | DD42: 12.37900723
A43: 4100 | B43: 0.02277965313 | C43: 0.04501288835 | D43: 0.07852622578 | O43: 0.07864916455 | AS43: 4100 | AT43: 0.008384743367 | AU43: 0.01515388772 | AV43: 0.02349270601 | AW43: 0.03321594849 | AX43: 0.04418890865 | AY43: 0.05631029663 | AZ43: 0.06950128677 | BA43: 0.08369864622 | BL43: 4100 | BM43: 0.02775266325 | BN43: 0.04256251139 | BO43: 0.0566426048 | BP43: 0.0717982947 | BQ43: 0.08938741748 | BR43: 0.11175 | BS43: 0.143631114 | BT43: 0.198 | BU43: 0.3500548 | CP43: 4100 | CQ43: 5.945748104 | CR43: 7.151082759 | CS43: 8.25187879 | CT43: 9.275951 | CU43: 10.2403305 | CV43: 11.15639144 | CW43: 12.03220126 | DD43: 12.2169144
A44: 4200 | B44: 0.02289346732 | C44: 0.04523778666 | D44: 0.07891856709 | O44: 0.07595019959 | AS44: 4200 | AT44: 0.008265259774 | AU44: 0.01490738826 | AV44: 0.02307783156 | AW44: 0.03259595273 | AX44: 0.04333081844 | AY44: 0.0551841145 | AZ44: 0.068079368 | BL44: 4200 | BM44: 0.02775266325 | BN44: 0.04256251139 | BO44: 0.0566426048 | BP44: 0.0717982947 | BQ44: 0.08938741748 | BR44: 0.11175 | BS44: 0.143631114 | BT44: 0.198 | BU44: 0.3500548 | CP44: 4200 | CQ44: 5.904485317 | CR44: 7.101455092 | CS44: 8.19461173 | CT44: 9.211577 | CU44: 10.16926382 | CV44: 11.07896741 | CW44: 11.94869921 | DD44: 12.06077437
A45: 4300 | B45: 0.023005152 | C45: 0.04545847703 | O45: 0.07340414538 | AS45: 4300 | AT45: 0.008149133648 | AU45: 0.01466877977 | AV45: 0.02267735597 | AW45: 0.03199867805 | AX45: 0.04250541936 | AY45: 0.05410209545 | AZ45: 0.0667144645 | BL45: 4300 | BM45: 0.02775266325 | BN45: 0.04256251139 | BO45: 0.0566426048 | BP45: 0.0717982947 | BQ45: 0.08938741748 | BR45: 0.11175 | BS45: 0.143631114 | BT45: 0.198 | BU45: 0.3500548 | CP45: 4300 | CQ45: 5.864469855 | CR45: 7.053327611 | CS45: 8.139075785 | CT45: 9.149148949 | CU45: 10.1003454 | CV45: 11.00388381 | CW45: 11.86772132 | DD45: 11.91023445
A46: 4400 | B46: 0.02311479517 | C46: 0.04567513334 | O46: 0.07099907745 | AS46: 4400 | AT46: 0.008036225433 | AU46: 0.0144376893 | AV46: 0.0222905424 | AW46: 0.03142289794 | AX46: 0.04171087817 | AY46: 0.05306169168 | AZ46: 0.06540321443 | BL46: 4400 | BM46: 0.02775266325 | BN46: 0.04256251139 | BO46: 0.0566426048 | BP46: 0.0717982947 | BQ46: 0.08938741748 | BR46: 0.11175 | BS46: 0.143631114 | BT46: 0.198 | BU46: 0.3500548 | CP46: 4400 | CQ46: 5.825636295 | CR46: 7.006621629 | CS46: 8.085180155 | CT46: 9.08856478 | CU46: 10.03346256 | CV46: 10.93101789 | DD46: 11.76497041
A47: 4500 | B47: 0.0232224793 | C47: 0.04588791856 | O47: 0.06872424434 | AS47: 4500 | AT47: 0.007926403202 | AU47: 0.01421376706 | AV47: 0.02191670348 | AW47: 0.0308674726 | AX47: 0.04094549616 | AY47: 0.05206054765 | AZ47: 0.06414251515 | BL47: 4500 | BM47: 0.02775266325 | BN47: 0.04256251139 | BO47: 0.0566426048 | BP47: 0.0717982947 | BQ47: 0.08938741748 | BR47: 0.11175 | BS47: 0.143631114 | BT47: 0.198 | BU47: 0.3500548 | CP47: 4500 | CQ47: 5.78792403 | CR47: 6.961264254 | CS47: 8.032840731 | CT47: 9.029729944 | CU47: 9.968510932 | CV47: 10.86025593 | DD47: 11.6246836
A48: 4600 | B48: 0.02332828178 | C48: 0.04609698563 | O48: 0.06656992925 | AS48: 4600 | AT48: 0.007819542143 | AU48: 0.01399668461 | AV48: 0.02155519718 | AW48: 0.03033134141 | AX48: 0.04020769707 | AY48: 0.0510964823 | AZ48: 0.06292949871 | BL48: 4600 | BM48: 0.02775266325 | BN48: 0.04256251139 | BO48: 0.0566426048 | BP48: 0.0717982947 | BQ48: 0.08938741748 | BR48: 0.11175 | BS48: 0.143631114 | BT48: 0.198 | BU48: 0.3500548 | CP48: 4600 | CQ48: 5.751276826 | CR48: 6.917187852 | CS48: 7.981979463 | CT48: 8.972556707 | CU48: 9.905393646 | CV48: 10.79149242 | DD48: 11.48909847
A49: 4700 | B49: 0.02343227534 | C49: 0.04630247826 | O49: 0.06452733077 | AS49: 4700 | AT49: 0.007715524084 | AU49: 0.01378613328 | AV49: 0.02120542313 | AW49: 0.02981351619 | AX49: 0.03949601623 | AY49: 0.0501674732 | AZ49: 0.06176151011 | BL49: 4700 | BM49: 0.02775266325 | BN49: 0.04256251139 | BO49: 0.0566426048 | BP49: 0.0717982947 | BQ49: 0.08938741748 | BR49: 0.11175 | BS49: 0.143631114 | BT49: 0.198 | BU49: 0.3500548 | CP49: 4700 | CQ49: 5.715642412 | CR49: 6.874329553 | CS49: 7.932523808 | CT49: 8.91696352 | CU49: 9.844020682 | CV49: 10.72462926 | DD49: 11.35796025
A50: 4800 | B50: 0.02353452844 | C50: 0.0465045317 | O50: 0.06258845938 | AS50: 4800 | AT50: 0.007614237059 | AU50: 0.01358182269 | AV50: 0.02086681932 | AW50: 0.02931307509 | AX50: 0.03880909088 | AY50: 0.04927164237 | AZ50: 0.06063608783 | BL50: 4800 | BM50: 0.02775266325 | BN50: 0.04256251139 | BO50: 0.0566426048 | BP50: 0.0717982947 | BQ50: 0.08938741748 | BR50: 0.11175 | BS50: 0.143631114 | BT50: 0.198 | BU50: 0.3500548 | CP50: 4800 | CQ50: 5.680972124 | CR50: 6.832630832 | CS50: 7.884406228 | CT50: 8.862874467 | CU50: 9.78430823 | CV50: 10.65957516 | DD50: 11.23103305
A51: 4900 | B51: 0.02363510556 | C51: 0.04670327339 | O51: 0.06074604763 | AS51: 4900 | AT51: 0.007515574905 | AU51: 0.01338347944 | AV51: 0.02053885906 | AW51: 0.02882915716 | AX51: 0.03814565145 | AY51: 0.04840724361 | AZ51: 0.05955094659 | BL51: 4900 | BM51: 0.02775266325 | BN51: 0.04256251139 | BO51: 0.0566426048 | BP51: 0.0717982947 | BQ51: 0.08938741748 | BR51: 0.11175 | BS51: 0.143631114 | BT51: 0.198 | BU51: 0.3500548 | CP51: 4900 | CQ51: 5.647220593 | CR51: =IF($CN$1*CR$1^$CN$2*$CP51^$CN$3>$DD51,#N/A,$CN$1*CR$1^$CN$2*$CP51^$CN$3) -> 6.792037118 | CS51: 7.837563755 | CT51: 8.810218764 | CU51: 9.726178147 | CV51: 10.59624498 | DD51: 11.10809806
A52: 5000 | B52: 0.02373406757 | C52: 0.04689882358 | O52: 0.0589934718 | AS52: 5000 | AT52: 0.007419436892 | AU52: 0.01319084585 | AV52: 0.02022104828 | AW52: 0.02836095737 | AX52: 0.03750451369 | AY52: 0.04757265117 | AZ52: 0.0585039618 | BL52: 5000 | BM52: 0.02775266325 | BN52: 0.04256251139 | BO52: 0.0566426048 | BP52: 0.0717982947 | BQ52: 0.08938741748 | BR52: 0.11175 | BS52: 0.143631114 | BT52: 0.198 | BU52: 0.3500548 | CP52: 5000 | CQ52: 5.614345453 | CR52: 6.75249746 | CS52: 7.791937592 | CT52: 8.758930316 | CU52: 9.669557467 | CV52: 10.53455923 | DD52: 10.98895201
A53: 5100 | B53: 0.02383147192 | C53: 0.04709129584 | O53: 0.0573246834 | AS53: 5100 | AT53: 0.007325727377 | AU53: 0.01300367887 | AV53: 0.01991292301 | AW53: 0.02790772214 | AX53: 0.03688457168 | AY53: 0.04676634949 | AZ53: 0.05749315571 | BL53: 5100 | BM53: 0.02775266325 | BN53: 0.04256251139 | BO53: 0.0566426048 | BP53: 0.0717982947 | BQ53: 0.08938741748 | BR53: 0.11175 | BS53: 0.143631114 | BT53: 0.198 | BU53: 0.3500548 | CP53: 5100 | CQ53: 5.58230709 | CR53: 6.713964212 | CS53: 7.747472761 | CT53: 8.708947323 | CU53: 9.614377964 | CV53: 10.47444358 | DD53: 10.87340579
A54: 5200 | B54: 0.02392737297 | C54: 0.04728079755 | O54: 0.0557341492 | AS54: 5200 | AT54: 0.007234355491 | AU54: 0.01282174907 | AV54: 0.01961404713 | AW54: 0.02746874531 | AX54: 0.03628479144 | AY54: 0.04598692406 | AZ54: 0.05651668493 | BL54: 5200 | BM54: 0.02775266325 | BN54: 0.04256251139 | BO54: 0.0566426048 | BP54: 0.0717982947 | BQ54: 0.08938741748 | BR54: 0.11175 | BS54: 0.143631114 | BT54: 0.198 | BU54: 0.3500548 | CP54: 5200 | CQ54: 5.551068414 | CR54: 6.676392765 | CS54: 7.704117784 | CT54: 8.66021192 | CU54: 9.560575757 | CV54: 10.41582843 | DD54: 10.7612832
A55: 5300 | B55: 0.02402182217 | C55: 0.0474674304 | O55: 0.05421679845 | AS55: 5300 | AT55: 0.007145234842 | AU55: 0.01264483965 | AV55: 0.01932401032 | AW55: 0.02704336446 | AX55: 0.03570420515 | AY55: 0.04523305312 | AZ55: 0.0555728292 | BL55: 5300 | BM55: 0.02775266325 | BN55: 0.04256251139 | BO55: 0.0566426048 | BP55: 0.0717982947 | BQ55: 0.08938741748 | BR55: 0.11175 | BS55: 0.143631114 | BT55: 0.198 | BU55: 0.3500548 | CP55: 5300 | CQ55: 5.520594651 | CR55: 6.639741297 | CS55: 7.661824402 | CT55: 8.612669857 | CU55: 9.508090957 | CV55: 10.35864854 | DD55: 10.65241981
A56: 5400 | B56: 0.0241148683 | C56: 0.04765129074 | O56: 0.05276797642 | AS56: 5400 | AT56: 0.007058283241 | AU56: 0.01247274565 | AV56: 0.01904242618 | AW56: 0.02663095759 | AX56: 0.03514190595 | AY56: 0.04450350018 | AZ56: 0.05465998132 | BL56: 5400 | BM56: 0.02775266325 | BN56: 0.04256251139 | BO56: 0.0566426048 | BP56: 0.0717982947 | BQ56: 0.08938741748 | BR56: 0.11175 | BS56: 0.143631114 | BT56: 0.198 | BU56: 0.3500548 | CP56: 5400 | CQ56: 5.490853161 | CR56: 6.603970549 | CS56: 7.620547314 | CT56: 8.566270212 | CU56: 9.456867346 | CV56: 10.30284266 | DD56: 10.54666204
A57: 5500 | B57: 0.02420655759 | C57: 0.04783246996 | O57: 0.05138340337 | AS57: 5500 | AT57: 0.006973422456 | AU57: 0.01230527309 | AV57: 0.01876893051 | AW57: 0.02623094006 | AX57: 0.03459704325 | AY57: 0.04379710726 | AZ57: 0.05377663795 | BL57: 5500 | BM57: 0.02775266325 | BN57: 0.04256251139 | BO57: 0.0566426048 | BP57: 0.0717982947 | BQ57: 0.08938741748 | BR57: 0.11175 | BS57: 0.143631114 | BT57: 0.198 | BU57: 0.3500548 | CP57: 5500 | CQ57: 5.461813268 | CR57: 6.569043628 | CS57: 7.580243945 | CT57: 8.520965127 | CU57: 9.406852092 | CV57: 10.24835323 | DD57: 10.4438662
A58: 5600 | B58: 0.02429693398 | C58: 0.04801105488 | O58: 0.05005913816 | AS58: 5600 | AT58: 0.006890577968 | AU58: 0.01214223827 | AV58: 0.01850317974 | AW58: 0.02584276184 | AX58: 0.0340688184 | AY58: 0.04311278876 | AZ58: 0.0529213914 | BL58: 5600 | BM58: 0.02775266325 | BN58: 0.04256251139 | BO58: 0.0566426048 | BP58: 0.0717982947 | BQ58: 0.08938741748 | BR58: 0.11175 | BS58: 0.143631114 | BT58: 0.198 | BU58: 0.3500548 | CP58: 5600 | CQ58: 5.433446109 | CR58: 6.534925818 | CS58: 7.540874238 | CT58: 8.476709572 | CU58: 9.357995483 | CV58: 10.1951261 | DD58: 10.34389771
A59: 5700 | B59: 0.02438603921 | C59: 0.04818712797 | O59: 0.04879154609 | AS59: 5700 | AT59: 0.00680967876 | AU59: 0.01198346712 | AV59: 0.01824484947 | AW59: 0.02546590498 | AX59: 0.03355648076 | AY59: 0.04244952587 | AZ59: 0.05209292214 | BL59: 5700 | BM59: 0.02775266325 | BN59: 0.04256251139 | BO59: 0.0566426048 | BP59: 0.0717982947 | BQ59: 0.08938741748 | BR59: 0.11175 | BS59: 0.143631114 | BT59: 0.198 | BU59: 0.3500548 | CP59: 5700 | CQ59: 5.405724497 | CR59: 6.501584422 | CS59: 7.502400462 | CT59: 8.433461135 | CU59: 9.310250698 | CV59: 10.14311025 | DD59: 10.24663035
A60: 5800 | B60: 0.02447391301 | C60: 0.04836076773 | M60: =IF(10^($R$1+$R$2*LOG10(M$1)+$R$3*LOG10($A60))>1.05*$O60,#N/A,10^($R$1+$R$2*LOG10(M$1)+$R$3*LOG10($A60))) ->  | O60: 0.04757727014 | AS60: 5800 | AT60: 0.006730657113 | AU60: 0.01182879455 | AV60: 0.01799363319 | AW60: 0.02509988132 | AX60: 0.03305932422 | AY60: 0.04180636153 | BL60: 5800 | BM60: 0.02775266325 | BN60: 0.04256251139 | BO60: 0.0566426048 | BP60: 0.0717982947 | BQ60: 0.08938741748 | BR60: 0.11175 | BS60: 0.143631114 | BT60: 0.198 | BU60: 0.3500548 | CP60: 5800 | CQ60: 5.378622796 | CR60: 6.468988607 | CS60: 7.464787037 | CT60: 8.39117982 | CU60: 9.263573582 | CV60: 10.09225757 | DD60: 10.15194565
A61: 5900 | B61: 0.02456059319 | C61: 0.04853204887 | O61: 0.04641320549 | AS61: 5900 | AT61: 0.006653448411 | AU61: 0.01167806386 | AV61: 0.01774924101 | AW61: 0.02474423034 | AX61: 0.03257668387 | AY61: 0.04118239583 | BL61: 5900 | BM61: 0.02775266325 | BN61: 0.04256251139 | BO61: 0.0566426048 | BP61: 0.0717982947 | BQ61: 0.08938741748 | BR61: 0.11175 | BS61: 0.143631114 | BT61: 0.198 | BU61: 0.3500548 | CP61: 5900 | CQ61: 5.35211681 | CR61: 6.437109271 | CS61: 7.428000382 | CT61: 8.349827878 | CU61: 9.217922462 | CV61: 10.04252268 | DD61: 10.05973225
A62: 6000 | B62: 0.02464611578 | O62: 0.04529647665 | AS62: 6000 | AT62: 0.006577990972 | AU62: 0.01153112627 | AV62: 0.01751139862 | AW62: 0.02439851729 | AX62: 0.03210793309 | AY62: 0.04057678177 | BL62: 6000 | BM62: 0.02775266325 | BN62: 0.04256251139 | BO62: 0.0566426048 | BP62: 0.0717982947 | BQ62: 0.08938741748 | BR62: 0.11175 | BS62: 0.143631114 | BT62: 0.198 | BU62: 0.3500548 | CP62: =A62 -> 6000 | CQ62: 5.326183675 | CR62: 6.405918915 | CS62: 7.392008765 | CT62: 8.30936964 | CU62: 9.17325796 | DD62: 9.969885378
A63: 6100 | B63: 0.02473051516 | O63: 0.0442244171 | AS63: 6100 | AT63: 0.006504225882 | AU63: 0.01138784037 | AV63: 0.01727984619 | AW63: 0.02406233137 | AX63: 0.03165248081 | AY63: 0.03998872148 | BL63: 6100 | BM63: 0.02775266325 | BN63: 0.04256251139 | BO63: 0.0566426048 | BP63: 0.0717982947 | BQ63: 0.08938741748 | BR63: 0.11175 | BS63: 0.143631114 | BT63: 0.198 | BU63: 0.3500548 | CP63: 6100 | CQ63: 5.300801767 | CR63: 6.375391533 | CS63: 7.356782175 | CT63: 8.269771371 | CU63: 9.129542835 | DD63: 9.882306349
A64: 6200 | B64: 0.02481382414 | O64: 0.04319455094 | AS64: 6200 | AT64: 0.006432096838 | AU64: 0.01124807172 | AV64: 0.01705433745 | AW64: 0.0237352841 | AX64: 0.03120976902 | AY64: 0.03941746265 | BL64: 6200 | BM64: 0.02775266325 | BN64: 0.04256251139 | BO64: 0.0566426048 | BP64: 0.0717982947 | BQ64: 0.08938741748 | BR64: 0.11175 | BS64: 0.143631114 | BT64: 0.198 | BU64: 0.3500548 | CP64: 6200 | CQ64: 5.275950618 | CR64: 6.345502506 | CS64: 7.322292206 | CT64: 8.231001137 | CU64: 9.086741832 | DD64: 9.796902131
A65: 6300 | B65: 0.02489607406 | O65: 0.04220457651 | AS65: 6300 | AT65: 0.006361550007 | AU65: 0.01111169236 | AV65: 0.01683463885 | AW65: 0.02341700786 | AX65: 0.03077927051 | AY65: 0.03886229538 | BL65: 6300 | BM65: 0.02775266325 | BN65: 0.04256251139 | BO65: 0.0566426048 | BP65: 0.0717982947 | BQ65: 0.08938741748 | BR65: 0.11175 | BS65: 0.143631114 | BT65: 0.198 | BU65: 0.3500548 | CP65: 6300 | CQ65: 5.251610832 | CR65: 6.316228508 | CS65: 7.288511938 | CT65: 8.193028681 | CU65: 9.044821548 | DD65: 9.713584927
A66: 6400 | B66: 0.02497729486 | O66: 0.04125235157 | AS66: 6400 | AT66: 0.006292533893 | AU66: 0.0109785805 | AV66: 0.01662052869 | AW66: 0.02310715447 | AX66: 0.03036048675 | AY66: 0.0383225492 | BL66: 6400 | BM66: 0.02775266325 | BN66: 0.04256251139 | BO66: 0.0566426048 | BP66: 0.0717982947 | BQ66: 0.08938741748 | BR66: 0.11175 | BS66: 0.143631114 | BT66: 0.198 | BU66: 0.3500548 | CP66: 6400 | CQ66: 5.227764018 | CR66: 6.287547417 | CS66: 7.255415848 | CT66: 8.155825309 | CU66: 9.003750306 | DD66: 9.632271807
A67: 6500 | B67: 0.02505751522 | O67: 0.04033588002 | AS67: 6500 | AT67: 0.006224999212 | AU67: 0.01084862011 | AV67: 0.01641179641 | AW67: 0.02280539394 | AX67: 0.02995294599 | AY67: 0.03779759037 | BL67: 6500 | BM67: 0.02775266325 | BN67: 0.04256251139 | BO67: 0.0566426048 | BP67: 0.0717982947 | BQ67: 0.08938741748 | BR67: 0.11175 | BS67: 0.143631114 | BT67: 0.198 | BU67: 0.3500548 | CP67: 6500 | CQ67: 5.204392719 | CR67: =IF($CN$1*CR$1^$CN$2*$CP67^$CN$3>$DD67,#N/A,$CN$1*CR$1^$CN$2*$CP67^$CN$3) -> 6.259438239 | CS67: 7.222979706 | CT67: 8.119363788 | CU67: 8.963498042 | DD67: 9.552884364
A68: 6600 | B68: 0.02513676256 | O68: =10^($Y$3+$Y$2*LOG10($A68)) -> 0.03945329983 | AS68: =A68 -> 6600 | AT68: =IF(0.95*$AS68>10^((LOG10(1/($AN$1*AT$1^$AN$3+$AN$4*$AS68*AT$1^$AN$2))-$Y$1-$Z$1)/$Y$2),#N/A, 1/($AN$1*AT$1^$AN$3+$AN$4*$AS68*AT$1^$AN$2)) -> 0.006158898771 | AU68: 0.01072170056 | AV68: 0.01620824193 | AW68: 0.02251141331 | AX68: 0.02955620146 | AY68: 0.03728681942 | BA68: =IF(0.95*$AS68>10^((LOG10(1/($AN$1*BA$1^$AN$3+$AN$4*$AS68*BA$1^$AN$2))-$Y$1-$Z$1)/$Y$2),#N/A, 1/($AN$1*BA$1^$AN$3+$AN$4*$AS68*BA$1^$AN$2)) ->  | BL68: =A68 -> 6600 | BM68: 0.02775266325 | BN68: 0.04256251139 | BO68: 0.0566426048 | BP68: 0.0717982947 | BQ68: 0.08938741748 | BR68: 0.11175 | BS68: 0.143631114 | BT68: 0.198 | BU68: 0.3500548 | CP68: =A68 -> 6600 | CQ68: =IF($CN$1*CQ$1^$CN$2*$CP68^$CN$3>$DD68,#N/A,$CN$1*CQ$1^$CN$2*$CP68^$CN$3) -> 5.181480354 | CR68: 6.23188103 | CS68: 7.191180501 | CT68: 8.083618247 | CU68: 8.924036196 | DD68: =10^($BY$3+$BY$2*LOG10($CP68)) -> 9.475348406
A69: 6700 | B69: 0.02521506317 | O69: 0.03860287221 | AS69: 6700 | AT69: 0.006094187361 | AU69: 0.01059771637 | AV69: 0.01600967493 | AW69: 0.02222491552 | AX69: 0.02916982978 | AY69: 0.03678966883 | BL69: 6700 | BM69: =BM68 -> 0.02775266325 | BN69: 0.04256251139 | BO69: 0.0566426048 | BP69: 0.0717982947 | BQ69: 0.08938741748 | BR69: 0.11175 | BS69: 0.143631114 | BT69: 0.198 | BU69: 0.3500548 | CP69: 6700 | CQ69: 5.159011158 | CR69: 6.204856832 | CS69: 7.159996355 | CT69: 8.048564095 | CU69: 8.885337619 | DD69: 9.399593668
A70: 6800 | B70: 0.02529244223 | O70: 0.03778297176 | AS70: 6800 | AT70: 0.006030821655 | AU70: 0.01047656687 | AV70: 0.01581591434 | AW70: 0.02194561849 | AX70: 0.02879342938 | AY70: 0.03630560097 | BL70: 6800 | BM70: 0.02775266325 | BN70: 0.04256251139 | BO70: 0.0566426048 | BP70: 0.0717982947 | BQ70: 0.08938741748 | BR70: 0.11175 | BS70: 0.143631114 | BT70: 0.198 | BU70: 0.3500548 | CP70: 6800 | CQ70: 5.136970135 | CR70: 6.178347606 | CS70: 7.129406454 | CT70: 8.014177935 | CU70: 8.847376483 | DD70: 9.325553548
A71: 6900 | B71: 0.02536892392 | O71: 0.03699207754 | AS71: 6900 | AT71: 0.005968760108 | AU71: 0.01035815594 | AV71: 0.01562678772 | AW71: 0.02167325409 | AX71: 0.0284266192 | AY71: 0.03583410613 | BL71: 6900 | BM71: 0.02775266325 | BN71: 0.04256251139 | BO71: 0.0566426048 | BP71: 0.0717982947 | BQ71: 0.08938741748 | BR71: 0.11175 | BS71: 0.143631114 | BT71: 0.198 | BU71: 0.3500548 | CP71: 6900 | CQ71: 5.115343007 | CR71: 6.152336181 | CS71: 7.099390981 | CT71: 7.980437491 | CU71: 8.810128195 | DD71: 9.253164867
A72: 7000 | B72: 0.02544453141 | O72: 0.03622876494 | AS72: 7000 | AT72: 0.005907962867 | AU72: 0.01024239177 | AV72: 0.0154421308 | AW72: 0.02140756738 | AX72: 0.02806903731 | AY72: 0.03537470074 | BL72: 7000 | BM72: 0.02775266325 | BN72: 0.04256251139 | BO72: 0.0566426048 | BP72: 0.0717982947 | BQ72: 0.08938741748 | BR72: 0.11175 | BS72: 0.143631114 | BT72: 0.198 | BU72: 0.3500548 | CP72: 7000 | CQ72: 5.09411617 | CR72: 6.126806195 | CS72: 7.069931057 | CT72: 7.947321541 | CU72: 8.773569326 | DD72: 9.182367646
A73: 7100 | B73: 0.02551928697 | O73: 0.03549169838 | AS73: 7100 | AT73: 0.005848391687 | AU73: 0.01012918659 | AV73: 0.01526178698 | AW73: 0.02114831576 | AX73: 0.0277203398 | AY73: 0.03492692571 | BL73: 7100 | BM73: 0.02775266325 | BN73: 0.04256251139 | BO73: 0.0566426048 | BP73: 0.0717982947 | BQ73: 0.08938741748 | BR73: 0.11175 | BS73: 0.143631114 | BT73: 0.198 | BU73: 0.3500548 | CP73: 7100 | CQ73: 5.073276653 | CR73: 6.101742047 | CS73: 7.041008681 | CT73: 7.914809848 | CU73: 8.737677536 | DD73: 9.113104903
A74: 7200 | B74: 0.02559321201 | O74: 0.0347796245 | AS74: 7200 | AT74: 0.005790009852 | AU74: 0.01001845648 | AV74: 0.0150856069 | AW74: 0.02089526821 | AX74: 0.02738019962 | AY74: 0.0344903449 | BL74: 7200 | BM74: 0.02775266325 | BN74: 0.04256251139 | BO74: 0.0566426048 | BP74: 0.0717982947 | BQ74: 0.08938741748 | BR74: 0.11175 | BS74: 0.143631114 | BT74: 0.198 | BU74: 0.3500548 | CP74: 7200 | CQ74: 5.052812082 | CR74: 6.077128854 | CS74: 7.012606676 | CT74: 7.882883106 | CU74: 8.702431512 | DD74: 9.04532246
A75: 7300 | B75: 0.0256663271 | O75: 0.03409136613 | AS75: 7300 | AT75: 0.005732782095 | AU75: 0.009910121145 | AV75: 0.01491344799 | AW75: 0.02064820469 | AX75: 0.02704830558 | AY75: 0.03406454373 | BL75: 7300 | BM75: 0.02775266325 | BN75: 0.04256251139 | BO75: 0.0566426048 | BP75: 0.0717982947 | BQ75: 0.08938741748 | BR75: 0.11175 | BS75: 0.143631114 | BT75: 0.198 | BU75: 0.3500548 | CP75: 7300 | CQ75: 5.03271064 | CR75: 6.052952405 | CS75: 6.984708646 | CT75: 7.851522883 | CU75: 8.667810906 | DD75: 8.97896877
A76: 7400 | B76: 0.02573865202 | O76: 0.03342581664 | AS76: 7400 | AT76: 0.00567667453 | AU76: 0.009804103732 | AV76: 0.01474517415 | AW76: 0.0204069154 | AX76: 0.0267243614 | AY76: 0.03364912782 | BL76: 7400 | BM76: 0.02775266325 | BN76: 0.04256251139 | BO76: 0.0566426048 | BP76: 0.0717982947 | BQ76: 0.08938741748 | BR76: 0.11175 | BS76: 0.143631114 | BT76: 0.198 | BU76: 0.3500548 | CP76: 7400 | CQ76: 5.012961042 | CR76: 6.029199126 | CS76: 6.957298925 | CT76: 7.820711569 | CU76: 8.633796277 | DD76: 8.913994756
A77: 7500 | B77: 0.02581020583 | O77: 0.03278193484 | AS77: 7500 | AT77: 0.005621654586 | AU77: 0.009700330634 | AV77: 0.01458065533 | AW77: 0.02017120025 | AX77: 0.02640808483 | AY77: 0.0332437218 | BL77: 7500 | BM77: 0.02775266325 | BN77: 0.04256251139 | BO77: 0.0566426048 | BP77: 0.0717982947 | BQ77: 0.08938741748 | BR77: 0.11175 | BS77: 0.143631114 | BT77: 0.198 | BU77: 0.3500548 | CP77: 7500 | CQ77: 4.993552497 | CR77: 6.00585604 | CS77: 6.93036254 | CT77: 7.790432333 | CU77: 8.600369042 | DD77: 8.850353661
A78: 7600 | B78: 0.02588100686 | O78: 0.03215874033 | AS78: 7600 | AT78: 0.005567690942 | AU78: 0.009598731334 | AV78: 0.01441976722 | AW78: 0.0199408683 | AX78: 0.02609920682 | AY78: 0.03284796819 | AZ78: =IF(0.95*$AS78>10^((LOG10(1/($AN$1*AZ$1^$AN$3+$AN$4*$AS78*AZ$1^$AN$2))-$Y$1-$Z$1)/$Y$2),#N/A, 1/($AN$1*AZ$1^$AN$3+$AN$4*$AS78*AZ$1^$AN$2)) ->  | BL78: 7600 | BM78: 0.02775266325 | BN78: 0.04256251139 | BO78: 0.0566426048 | BP78: 0.0717982947 | BQ78: 0.08938741748 | BR78: 0.11175 | BS78: 0.143631114 | BT78: 0.198 | BU78: 0.3500548 | CP78: 7600 | CQ78: 4.974474684 | CR78: 5.982910733 | CS78: 6.903885167 | CT78: 7.760669072 | CU78: 8.567511427 | DD78: 8.78800091
A79: 7700 | B79: 0.02595107278 | O79: 0.03155530919 | AS79: 7700 | AT79: 0.005514753468 | AU79: 0.009499238235 | AV79: 0.01426239096 | AW79: 0.01971573721 | AX79: 0.02579747076 | AY79: 0.03246152631 | BL79: 7700 | BM79: 0.02775266325 | BN79: 0.04256251139 | BO79: 0.0566426048 | BP79: 0.0717982947 | BQ79: 0.08938741748 | BR79: 0.11175 | BS79: 0.143631114 | BT79: 0.198 | BU79: 0.3500548 | CP79: 7700 | CQ79: 4.955717727 | CR79: 5.960351326 | CS79: 6.877853096 | CT79: 7.731406377 | CU79: 8.53520642 | DD79: 8.726893976
A80: 7800 | B80: 0.02602042063 | O80: 0.03097077002 | AS80: 7800 | AT80: 0.00546281317 | AU80: 0.009401786515 | AV80: 0.01410841279 | AW80: 0.0194956328 | AX80: 0.02550263177 | AY80: 0.03208407134 | BL80: 7800 | BM80: 0.02775266325 | BN80: 0.04256251139 | BO80: 0.0566426048 | BP80: 0.0717982947 | BQ80: 0.08938741748 | BR80: 0.11175 | BS80: 0.143631114 | BT80: 0.198 | BU80: 0.3500548 | CP80: 7800 | CQ80: 4.937272166 | CR80: 5.938166442 | CS80: 6.852253199 | CT80: 7.70262949 | CU80: 8.503437727 | DD80: 8.666992269
A81: 7900 | B81: 0.02608906683 | O81: 0.03040430038 | AS81: 7900 | AT81: 0.005411842134 | AU81: 0.009306313985 | AV81: 0.01395772384 | AW81: 0.01928038858 | AX81: 0.02521445605 | AY81: 0.03171529339 | BL81: 7900 | BM81: 0.02775266325 | BN81: 0.04256251139 | BO81: 0.0566426048 | BP81: 0.0717982947 | BQ81: 0.08938741748 | BR81: 0.11175 | BS81: 0.143631114 | BT81: 0.198 | BU81: 0.3500548 | CP81: 7900 | CQ81: 4.919128937 | CR81: 5.916345179 | CS81: 6.827072899 | CT81: 7.674324271 | CU81: 8.47218974 | DD81: 8.608257017
A82: 8000 | B82: 0.02615702722 | D82: =IF(10^($R$1+$R$2*LOG10(D$1)+$R$3*LOG10($A82))>1.05*$O82,#N/A,10^($R$1+$R$2*LOG10(D$1)+$R$3*LOG10($A82))) ->  | O82: 0.02985512343 | AS82: 8000 | AT82: 0.005361813481 | AU82: 0.009212760957 | AV82: 0.01381021983 | AW82: 0.01906984532 | AX82: 0.02493272025 | AY82: 0.03135489665 | BL82: 8000 | BM82: 0.02775266325 | BN82: 0.04256251139 | BO82: 0.0566426048 | BP82: 0.0717982947 | BQ82: 0.08938741748 | BR82: 0.11175 | BS82: 0.143631114 | BT82: 0.198 | BU82: 0.3500548 | CP82: 8000 | CQ82: 4.901279351 | CR82: 5.894877087 | CS82: 6.802300133 | CT82: 7.646477163 | CU82: 8.441447492 | DD82: 8.550651168
A83: 8100 | B83: 0.02622431712 | O83: 0.02932250488 | AS83: 8100 | AT83: 0.005312701315 | AU83: 0.009121070119 | AV83: 0.01366580084 | AW83: 0.01886385069 | AX83: 0.02465721086 | AY83: 0.03100259863 | BL83: 8100 | BM83: 0.02775266325 | BN83: 0.04256251139 | BO83: 0.0566426048 | BP83: 0.0717982947 | BQ83: 0.08938741748 | BR83: 0.11175 | BS83: 0.143631114 | BT83: 0.198 | BU83: 0.3500548 | CP83: 8100 | CQ83: 4.883715073 | CR83: 5.873752141 | CS83: 6.777923336 | CT83: 7.619075164 | CU83: 8.411196628 | DD83: 8.494139289
A84: 8200 | B84: 0.02629095127 | O84: 0.02880575018 | AS84: 8200 | AT84: 0.005264480679 | AU84: 0.009031186418 | AV84: 0.01352437107 | AW84: 0.01866225885 | AX84: 0.02438772375 | AY84: 0.03065812935 | BL84: 8200 | BM84: 0.02775266325 | BN84: =BN83 -> 0.04256251139 | BO84: =BO83 -> 0.0566426048 | BP84: =BP83 -> 0.0717982947 | BQ84: =BQ83 -> 0.08938741748 | BR84: =BR83 -> 0.11175 | BS84: =BS83 -> 0.143631114 | BT84: =BT83 -> 0.198 | BU84: =BU83 -> 0.3500548 | CP84: 8200 | CQ84: 4.866428103 | CR84: 5.85296072 | CS84: 6.753931405 | CT84: 7.592105794 | CU84: 8.381423372 | DD84: 8.43868748
A85: 8300 | B85: 0.02635694397 | O85: 0.02830420189 | AS85: 8300 | AT85: 0.005217127518 | AU85: 0.008943056951 | AV85: 0.01338583869 | AW85: 0.01846493014 | AX85: 0.02412406359 | AY85: 0.03032123074 | BL85: 8300 | BM85: 0.02775266325 | BN85: 0.04256251139 | BO85: 0.0566426048 | BP85: 0.0717982947 | BQ85: 0.08938741748 | BR85: 0.11175 | BS85: 0.143631114 | BT85: 0.198 | BU85: 0.3500548 | CP85: 8300 | CQ85: 4.849410762 | CR85: 5.832493587 | CS85: 6.730313681 | CT85: 7.56555707 | CU85: 8.352114495 | DD85: 8.384263287
A86: 8400 | B86: 0.026422309 | O86: 0.02781723732 | AS86: 8400 | AT86: 0.005170618631 | AU86: 0.008856630857 | AV86: 0.01325011555 | AW86: 0.01827173076 | AX86: 0.02386604342 | BL86: 8400 | BM86: 0.02775266325 | BN86: 0.04256251139 | BO86: 0.0566426048 | BP86: 0.0717982947 | BQ86: 0.08938741748 | BR86: 0.11175 | BS86: 0.143631114 | BT86: 0.198 | BU86: 0.3500548 | CP86: 8400 | CQ86: 4.832655669 | CR86: 5.812341867 | CS86: 6.707059922 | CT86: 7.53941748 | CU86: 8.323257288 | CV86: =IF($CN$1*CV$1^$CN$2*$CP86^$CN$3>$DD86,#N/A,$CN$1*CV$1^$CN$2*$CP86^$CN$3) ->  | DD86: 8.330835627
A87: 8500 | B87: 0.0264870597 | O87: 0.02734426627 | AS87: 8500 | AT87: 0.005124931638 | AU87: 0.008771859226 | AV87: 0.01311711706 | AW87: 0.01808253242 | AX87: 0.02361348417 | BL87: 8500 | BM87: 0.02775266325 | BN87: 0.04256251139 | BO87: 0.0566426048 | BP87: 0.0717982947 | BQ87: 0.08938741748 | BR87: 0.11175 | BS87: 0.143631114 | BT87: 0.198 | BU87: 0.3500548 | CP87: 8500 | CQ87: 4.816155734 | CR87: 5.79249703 | CS87: 6.684160287 | CT87: 7.51367596 | DD87: 8.278374711
A88: 8600 | B88: 0.02655120896 | O88: 0.02688472898 | AS88: 8600 | AT88: 0.005080044944 | AU88: 0.008688695 | AV88: 0.012986762 | AW88: 0.01789721211 | AX88: 0.02336621429 | BL88: 8600 | BM88: 0.02775266325 | BN88: 0.04256251139 | BO88: 0.0566426048 | BP88: 0.0717982947 | BQ88: 0.08938741748 | BR88: 0.11175 | BS88: 0.143631114 | BT88: 0.198 | BU88: 0.3500548 | CP88: 8600 | CQ88: 4.799904136 | CR88: 5.772950873 | CS88: 6.661605309 | CT88: 7.488321871 | DD88: 8.226851979
A89: 8700 | B89: 0.02661476928 | O89: 0.02643809429 | AS89: 8700 | AT89: 0.005035937703 | AU89: 0.00860709289 | AV89: 0.01285897231 | AW89: 0.0177156518 | AX89: 0.02312406935 | BL89: 8700 | BM89: 0.02775266325 | BN89: 0.04256251139 | BO89: 0.0566426048 | BP89: 0.0717982947 | BQ89: 0.08938741748 | BR89: 0.11175 | BS89: 0.143631114 | BT89: 0.198 | BU89: 0.3500548 | CP89: 8700 | CQ89: 4.783894315 | CR89: 5.753695507 | CS89: 6.639385884 | CT89: 7.463344978 | DD89: 8.176240033
A90: 8800 | B90: 0.02667775273 | O90: 0.02600385776 | AS90: 8800 | AT90: 0.004992589787 | AU90: 0.008527009293 | AV90: 0.01273367303 | AW90: 0.01753773822 | AX90: 0.02288689165 | BL90: 8800 | BM90: 0.02775266325 | BN90: 0.04256251139 | BO90: 0.0566426048 | BP90: 0.0717982947 | BQ90: 0.08938741748 | BR90: 0.11175 | BS90: 0.143631114 | BT90: 0.198 | BU90: 0.3500548 | CP90: 8800 | CQ90: 4.768119955 | CR90: 5.734723336 | CS90: 6.617493247 | CT90: 7.438735428 | DD90: 8.126512578
A91: 8900 | B91: 0.02674017102 | O91: 0.02558154016 | AS91: 8900 | AT91: 0.004949981755 | AU91: 0.008448402214 | AV91: 0.01261079204 | AW91: 0.01736336258 | AX91: 0.0226545299 | BL91: 8900 | BM91: 0.02775266325 | BN91: 0.04256251139 | BO91: 0.0566426048 | BP91: 0.0717982947 | BQ91: 0.08938741748 | BR91: 0.11175 | BS91: 0.143631114 | BT91: 0.198 | BU91: 0.3500548 | CP91: 8900 | CQ91: 4.752574978 | CR91: 5.716027048 | CS91: 6.595918961 | CT91: 7.414483736 | DD91: 8.077644367
A92: 9000 | O92: 0.02517068585 | AS92: 9000 | AT92: 0.004908094825 | AU92: 0.00837123119 | AV92: 0.01249026 | AW92: 0.0171924204 | AX92: 0.02242683888 | BL92: 9000 | BM92: 0.02775266325 | BN92: 0.04256251139 | BO92: 0.0566426048 | BP92: 0.0717982947 | BQ92: 0.08938741748 | BR92: 0.11175 | BS92: 0.143631114 | BT92: 0.198 | BU92: 0.3500548 | CP92: 9000 | CQ92: 4.737253524 | CR92: 5.697599597 | CS92: 6.574654896 | CT92: 7.390580764 | DD92: 8.029611145
A93: 9100 | O93: 0.02477086144 | AS93: 9100 | AT93: 0.004866910844 | AU93: 0.008295457226 | AV93: 0.01237201021 | AW93: 0.01702481125 | AX93: 0.02220367917 | BL93: 9100 | BM93: 0.02775266325 | BN93: 0.04256251139 | BO93: 0.0566426048 | BP93: 0.0717982947 | BQ93: 0.08938741748 | BR93: 0.11175 | BS93: 0.143631114 | BT93: 0.198 | BU93: 0.3500548 | CP93: 9100 | CQ93: 4.722149951 | CR93: 5.679434195 | CS93: 6.553693218 | CT93: 7.367017707 | DD93: 7.982389605
A94: 9200 | O94: 0.02438165443 | AS94: 9200 | AT94: 0.004826412264 | AU94: 0.008221042724 | AV94: 0.01225597844 | AW94: 0.0168604386 | AX94: 0.02198491684 | BL94: 9200 | BM94: 0.02775266325 | BN94: 0.04256251139 | BO94: 0.0566426048 | BP94: 0.0717982947 | BQ94: 0.08938741748 | BR94: 0.11175 | BS94: 0.143631114 | BT94: 0.198 | BU94: 0.3500548 | CP94: 9200 | CQ94: 4.707258816 | CR94: 5.661524297 | CS94: 6.533026375 | CT94: 7.343786072 | DD94: 7.935957334
A95: 9300 | O95: 0.02400267201 | AS95: 9300 | AT95: 0.004786582116 | AU95: 0.008147951425 | AV95: 0.01214210288 | AW95: 0.0166992096 | AX95: 0.02177042317 | BL95: 9300 | BM95: 0.02775266325 | BN95: 0.04256251139 | BO95: 0.0566426048 | BP95: 0.0717982947 | BQ95: 0.08938741748 | BR95: 0.11175 | BS95: 0.143631114 | BT95: 0.198 | BU95: 0.3500548 | CP95: 9300 | CQ95: 4.692574869 | CR95: 5.64386359 | CS95: 6.512647081 | CT95: 7.320877673 | DD95: 7.890292773
A96: 9400 | O96: 0.02363353992 | AS96: 9400 | AT96: 0.004747403986 | AU96: 0.008076148347 | AV96: 0.01203032397 | AW96: 0.01654103491 | AX96: 0.02156007443 | BL96: 9400 | BM96: 0.02775266325 | BN96: 0.04256251139 | BO96: 0.0566426048 | BP96: 0.0717982947 | BQ96: 0.08938741748 | BR96: 0.11175 | BS96: 0.143631114 | BT96: 0.198 | BU96: 0.3500548 | CP96: 9400 | CQ96: 4.678093046 | CR96: 5.626445982 | CS96: 6.492548307 | CT96: 7.298284608 | DD96: 7.845375177
A97: 9500 | O97: 0.02327390137 | AS97: 9500 | AT97: 0.004708861996 | AU97: 0.00800559973 | AV97: 0.01192058434 | AW97: 0.01638582857 | AX97: 0.02135375163 | BL97: 9500 | BM97: 0.02775266325 | BN97: 0.04256251139 | BO97: 0.0566426048 | BP97: 0.0717982947 | BQ97: 0.08938741748 | BR97: 0.11175 | BS97: 0.143631114 | BT97: 0.198 | BU97: 0.3500548 | CP97: 9500 | CQ97: 4.66380846 | CR97: 5.609265593 | CS97: 6.47272327 | CT97: 7.27599925 | DD97: 7.801184575
A98: 9600 | O98: 0.0229234161 | AS98: 9600 | AT98: 0.004670940775 | AU98: 0.007936272984 | AV98: 0.01181282868 | AW98: 0.01623350779 | AX98: 0.02115134028 | BL98: =A98 -> 9600 | BM98: 0.02775266325 | BN98: 0.04256251139 | BO98: 0.0566426048 | BP98: 0.0717982947 | BQ98: 0.08938741748 | BR98: 0.11175 | BS98: 0.143631114 | BT98: 0.198 | BU98: 0.3500548 | CP98: 9600 | CQ98: 4.649716388 | CR98: 5.592316747 | CS98: 6.453165418 | CT98: 7.254014235 | DD98: 7.757701731
A99: 9700 | O99: 0.02258175939 | AS99: =A99 -> 9700 | AT99: 0.004633625445 | AU99: 0.007868136639 | AV99: 0.01170700367 | AW99: 0.01608399283 | AX99: 0.0209527302 | BL99: =A99 -> 9700 | BM99: 0.02775266325 | BN99: 0.04256251139 | BO99: 0.0566426048 | BP99: 0.0717982947 | BQ99: 0.08938741748 | BR99: 0.11175 | BS99: 0.143631114 | BT99: 0.198 | BU99: 0.3500548 | CP99: 9700 | CQ99: 4.635812273 | CR99: 5.57559396 | CS99: 6.433868422 | CT99: 7.232322449 | DD99: 7.714908113
A100: 9800 | O100: 0.02224862123 | AS100: =A100 -> 9800 | AT100: 0.004596901602 | AU100: 0.007801160295 | AV100: 0.01160305789 | AW100: 0.01593720689 | AX100: 0.0207578153 | BL100: =A100 -> 9800 | BM100: 0.02775266325 | BN100: 0.04256251139 | BO100: 0.0566426048 | BP100: 0.0717982947 | BQ100: 0.08938741748 | BR100: 0.11175 | BS100: 0.143631114 | BT100: 0.198 | BU100: 0.3500548 | CP100: 9800 | CQ100: 4.622091707 | CR100: 5.559091932 | CS100: 6.414826167 | CT100: 7.210917018 | DD100: 7.672785858
A101: 9900 | O101: 0.02192370554 | AS101: 9900 | AT101: 0.004560755292 | AU101: 0.007735314578 | AV101: 0.01150094172 | AW101: 0.01579307592 | AX101: 0.0205664934 | BL101: =A101 -> 9900 | BM101: 0.02775266325 | BN101: 0.04256251139 | BO101: 0.0566426048 | BP101: 0.0717982947 | BQ101: 0.08938741748 | BR101: 0.11175 | BS101: 0.143631114 | BT101: 0.198 | BU101: 0.3500548 | CP101: 9900 | CQ101: 4.608550431 | CR101: 5.542805539 | CS101: 6.396032742 | CT101: 7.189791297 | DD101: 7.631317742
A102: 10000 | O102: 0.02160672933 | AS102: =A102 -> 10000 | AT102: 0.004525172998 | AU102: 0.007670571101 | AV102: 0.01140060728 | AW102: 0.01565152853 | AX102: 0.02037866607 | BL102: =A102 -> 10000 | BM102: 0.02775266325 | BN102: 0.04256251139 | BO102: 0.0566426048 | BP102: 0.0717982947 | BQ102: 0.08938741748 | BR102: 0.11175 | BS102: 0.143631114 | BT102: 0.198 | BU102: 0.3500548 | CP102: 10000 | CQ102: 4.595184326 | CR102: =IF($CN$1*CR$1^$CN$2*$CP102^$CN$3>$DD102,#N/A,$CN$1*CR$1^$CN$2*$CP102^$CN$3) -> 5.52672983 | CS102: 6.377482432 | CT102: 7.168938862 | DD102: 7.590487153

Sheet SDMD_PLNAT
A1: Lodgepole Pine - Natural Stand - Stand Density Management Diagram | K1: QMD ON | P1: GOA_60.1 | V1: <--SELECT A SAMPLE PLOT
K2: TOPH ON
K4: STAND INPUT | P4: STAND OUTPUT | U4: MR
K5: ID | L5: N | M5: tvol | N5: QMD | O5: TopH | P5: BAHA | Q5: TVHA | R5: MVHA | S5: SF | T5: RDI
K6: GOA_60.1 | L6: 4666.666667 | M6: 0.03276318985 | N6: 8.96714888 | O6: 13.67901235 | P6: =IF(L6*(0.00007854*N6^2)=0,"",L6*(0.00007854*N6^2)) -> 29.47178488 | Q6: =IF(M6*L6=0,"",M6*L6) -> 152.894886 | R6: =IFERROR((LKP!$BJ$4/(1+EXP(LKP!$BJ$2-LKP!$BJ$3*LOG10(M6))))*Q6,"") -> 20.21572864 | S6: =IFERROR(100/(SQRT(L6)*O6),"") -> 0.107014313 | T6: =IFERROR(L6/(10^((LOG10(M6)-LKP!$Y$3)/LKP!$Y$2)),"") -> 0.62197667 | U6: =IFERROR(R6/Q6,"") -> 0.1322197829
K7: GOA_60.1 | L7: 4148.148148 | M7: 0.05242650936 | N7: 9.94957259 | O7: 16.20308642 | P7: 32.25180351 | Q7: 217.4729277 | R7: =IFERROR((LKP!$BJ$4/(1+EXP(LKP!$BJ$2-LKP!$BJ$3*LOG10(M7))))*Q7,"") -> 58.76274487 | S7: 0.0958241824 | T7: =IFERROR(L7/(10^((LOG10(M7)-LKP!$Y$3)/LKP!$Y$2)),"") -> 0.7647417069 | U7: 0.2702071724
K8: GOA_60.1 | L8: 3283.950617 | M8: 0.07989759534 | N8: 12.06555238 | O8: 17.35407407 | P8: 37.54757846 | Q8: 262.3797575 | R8: =IFERROR((LKP!$BJ$4/(1+EXP(LKP!$BJ$2-LKP!$BJ$3*LOG10(M8))))*Q8,"") -> 117.6003141 | S8: 0.1005542068 | T8: =IFERROR(L8/(10^((LOG10(M8)-LKP!$Y$3)/LKP!$Y$2)),"") -> 0.8097160267 | U8: 0.4482065048
K9: GOA_60.1 | L9: 2923.45679 | M9: 0.1107409872 | N9: 13.56064553 | O9: 19.00123457 | P9: 42.22292383 | Q9: 323.7464908 | R9: =IFERROR((LKP!$BJ$4/(1+EXP(LKP!$BJ$2-LKP!$BJ$3*LOG10(M9))))*Q9,"") -> 192.8306773 | S9: 0.09733518106 | T9: =IFERROR(L9/(10^((LOG10(M9)-LKP!$Y$3)/LKP!$Y$2)),"") -> 0.9029649226 | U9: 0.5956224476
K10: GOA_60.1 | L10: 1827.160494 | M10: 0.1978701139 | N10: 16.70734249 | O10: 19.64938272 | P10: 40.05736192 | Q10: 361.5404551 | R10: =IFERROR((LKP!$BJ$4/(1+EXP(LKP!$BJ$2-LKP!$BJ$3*LOG10(M10))))*Q10,"") -> 289.0083444 | S10: 0.1190591397 | T10: =IFERROR(L10/(10^((LOG10(M10)-LKP!$Y$3)/LKP!$Y$2)),"") -> 0.8423732051 | U10: 0.7993803745
R11: =IFERROR((LKP!$BJ$4/(1+EXP(LKP!$BJ$2-LKP!$BJ$3*LOG10(M11))))*Q11,"") ->  | T11: =IFERROR(L11/(10^((LOG10(M11)-LKP!$Y$3)/LKP!$Y$2)),"") -> 
R12: =IFERROR((LKP!$BJ$4/(1+EXP(LKP!$BJ$2-LKP!$BJ$3*LOG10(M12))))*Q12,"") ->  | T12: =IFERROR(L12/(10^((LOG10(M12)-LKP!$Y$3)/LKP!$Y$2)),"") -> 
P13: =IF(L13*(0.00007854*N13^2)=0,"",L13*(0.00007854*N13^2)) ->  | Q13: =IF(M13*L13=0,"",M13*L13) ->  | R13: =IFERROR((LKP!$BJ$4/(1+EXP(LKP!$BJ$2-LKP!$BJ$3*LOG10(M13))))*Q13,"") ->  | S13: =IFERROR(100/(SQRT(L13)*O13),"") ->  | T13: =IFERROR(L13/(10^((LOG10(M13)-LKP!$Y$3)/LKP!$Y$2)),"") ->  | U13: =IFERROR(R13/Q13,"") -> 
Q14: =IF(M14*L14=0,"",M14*L14) ->  | R14: =IFERROR((LKP!$BJ$4/(1+EXP(LKP!$BJ$2-LKP!$BJ$3*LOG10(M14))))*Q14,"") ->  | S14: =IFERROR(100/(SQRT(L14)*O14),"") ->  | T14: =IFERROR(L14/(10^((LOG10(M14)-LKP!$Y$3)/LKP!$Y$2)),"") -> 
R15: =IFERROR((LKP!$BJ$4/(1+EXP(LKP!$BJ$2-LKP!$BJ$3*LOG10(M15))))*Q15,"") ->  | S15: =IFERROR(100/(SQRT(L15)*O15),"") ->  | T15: =IFERROR(L15/(10^((LOG10(M15)-LKP!$Y$3)/LKP!$Y$2)),"") -> 
A30: X-axis: Total Live Stem Density (stems/ha), Y-Axis: Average Total Stem Volume (m3) - Log-Log Scale
A32: IDENTIFIER: | C32: =sel_id -> GOA_60.1
A46: Maximum size-density relationship: | E46: LOG10(tvol)=4.131-1.449*LOG10(N)

Sheet mem (hidden)
A1: ID | B1: N | C1: tvol | D1: QMD | E1: TopH | F1: MYR | G1: MVOLHA | K1: Row Labels | L1: Count of ID
A2: BRL PLOT 2201 | B2: 1360 | C2: 0.163179615 | D2: 16.94952715 | E2: 16.22 | F2: 2022 | G2: 181.3009218 | K2: BRL CT PLOTS 2022 | L2: 1
A3: BRL PLOT 2202 | B3: 1580 | C3: 0.1245989649 | D3: 15.28076478 | E3: 15.72 | F3: 2022 | G3: 139.1337104 | K3: BRL PLOT 2201 | L3: 1
A4: BRL PLOT 2203 | B4: 1060 | C4: 0.2053324205 | D4: 18.7711139 | E4: 17.6 | F4: 2022 | G4: 187.2574285 | K4: BRL PLOT 2202 | L4: 1
A5: BRL PLOT 2204 | B5: 1340 | C5: 0.1832355554 | D5: 17.78005339 | E5: 16.64 | F5: 2022 | G5: 207.3961403 | K5: BRL PLOT 2203 | L5: 1
A6: CFS_01_McK_A_001_X | B6: 3657.029899 | C6: 0.02311077189 | D6: 7.99046006 | E6: 11.72645169 | F6: 1969 | K6: BRL PLOT 2204 | L6: 1
A7: CFS_01_McK_A_001_X | B7: 3657.029899 | C7: 0.04290521625 | D7: 9.55580459 | E7: 15.27679763 | F7: 1979 | K7: BRL PLOT 2205 | L7: 1
A8: CFS_01_McK_A_001_X | B8: 3657.029899 | C8: 0.06258275468 | D8: 10.66919049 | E8: 18.03817643 | F8: 1989 | K8: BRL PLOT 2206 | L8: 1
A9: CFS_01_McK_A_001_X | B9: 3657.029899 | C9: 0.07711208979 | D9: 11.39898201 | E9: 19.34319249 | F9: 1996 | K9: BRL PLOT 2207 | L9: 1
A10: CFS_01_McK_A_001_X | B10: 1927.353595 | C10: 0.1547587995 | D10: 15.11941709 | E10: 20.39651594 | F10: 2003 | K10: BRL PLOT 2208 | L10: 1
A11: CFS_01_McK_A_001_X | B11: 1803.805288 | C11: 0.1820774959 | D11: 16.062624 | E11: 21.09179639 | F11: 2008 | K11: BRL PLOT 2209 | L11: 1
A12: CFS_01_McK_A_001_X | B12: 1692.611811 | C12: 0.2132779953 | D12: 17.07291718 | E12: 21.50573264 | F12: 2014 | K12: CFS_01_McK_A_001_X | L12: 7
A13: CFS_01_McK_A_002_X | B13: 2977.514208 | C13: 0.010307932 | D13: 6.17065352 | E13: 8.76315789 | F13: 1960 | K13: CFS_01_McK_A_002_X | L13: 8
A14: CFS_01_McK_A_002_X | B14: 2977.514208 | C14: 0.02726836436 | D14: 8.59385054 | E14: 12.04739313 | F14: 1969 | K14: CFS_01_McK_A_005_X | L14: 9
A15: CFS_01_McK_A_002_X | B15: 2977.514208 | C15: 0.05119690216 | D15: 10.34411447 | E15: 15.05189029 | F15: 1979 | K15: CFS_01_McK_A_006_X | L15: 7
A16: CFS_01_McK_A_002_X | B16: 2965.159377 | C16: 0.07809074691 | D16: 11.83150657 | E16: 17.51007413 | F16: 1989 | K16: CFS_01_McK_B_001_X | L16: 9
A17: CFS_01_McK_A_002_X | B17: 2977.514208 | C17: 0.09901417746 | D17: 12.49064249 | E17: 19.38669385 | F17: 1996 | K17: CFS_01_McK_C_006_X | L17: 4
A18: CFS_01_McK_A_002_X | B18: 1840.86978 | C18: 0.1777868285 | D18: 16.049734 | E18: 20.57205832 | F18: 2003 | K18: CFS_03_McC_3_021_X | L18: 7
A19: CFS_01_McK_A_002_X | B19: 1692.611811 | C19: 0.2117479054 | D19: 16.99280386 | E19: 21.90560909 | F19: 2008 | K19: CFS_06_TPP_1_003_F | L19: 10
A20: CFS_01_McK_A_002_X | B20: 1371.386212 | C20: 0.2603672361 | D20: 18.54839074 | E20: 22.23736101 | F20: 2014 | K20: CFS_06_TPP_1_011_F | L20: 4
A21: CFS_06_TPP_1_003_F | B21: 988.1422925 | C21: 0.01302295257 | D21: 7.11557317 | E21: 8.31027668 | F21: 1967 | G21: 0 | K21: CFS_06_TPP_1_011_N | L21: 4
A22: CFS_06_TPP_1_003_F | B22: 988.1422925 | C22: 0.02572183397 | D22: 9.49287571 | E22: 9.38814229 | F22: 1972 | G22: 1.94188647 | K22: GOA_55.1 | L22: 7
A23: CFS_06_TPP_1_003_F | B23: 988.1422925 | C23: 0.04752279016 | D23: 11.95875686 | E23: 10.67391304 | F23: 1977 | G23: 15.25000679 | K23: GOA_60.1 | L23: 5
A24: CFS_06_TPP_1_003_F | B24: 988.1422925 | C24: 0.07478671776 | D24: 13.78753624 | E24: 12.77233202 | F24: 1982 | G24: 38.99151054 | K24: GOA_96.1 | L24: 6
A25: CFS_06_TPP_1_003_F | B25: 988.1422925 | C25: 0.102869983 | D25: 15.36606481 | E25: 13.92766798 | F25: 1987 | G25: 71.33331856 | K25: NAT GYPSY | L25: 8
A26: CFS_06_TPP_1_003_F | B26: 988.1422925 | C26: 0.1341424058 | D26: 16.66107592 | E26: 15.22885376 | F26: 1992 | G26: 106.3760785 | K26: RSA GYPSY | L26: 8
A27: CFS_06_TPP_1_003_F | B27: 988.1422925 | C27: 0.1592744072 | D27: 17.36191796 | E27: 16.49604743 | F27: 1996 | G27: 129.8547759 | K27: WYGP_606006000001_3 | L27: 5
A28: CFS_06_TPP_1_003_F | B28: 760.8695652 | C28: 0.2242975018 | D28: 19.90424436 | E28: 17.32766798 | F28: 2003 | G28: 149.7131655 | K28: Grand Total | L28: 118
A29: CFS_06_TPP_1_003_F | B29: 691.6996047 | C29: 0.2892750916 | D29: 21.56850675 | E29: 18.87233202 | F29: 2009 | G29: 180.8416693
A30: CFS_06_TPP_1_003_F | B30: 583.0039526 | C30: 0.3881742276 | D30: 23.73256445 | E30: 20.9339921 | F30: 2015 | G30: 209.2094333
A31: CFS_01_McK_A_005_X | B31: 2236.224364 | C31: 0.01119429196 | D31: 6.79859038 | E31: 7.46824809 | F31: 1954 | G31: 0
A32: CFS_01_McK_A_005_X | B32: 2285.643687 | C32: 0.02262642075 | D32: 8.3281418 | E32: 10.35115147 | F32: 1960 | G32: 1.65486337
A33: CFS_01_McK_A_005_X | B33: 2285.643687 | C33: 0.05556212622 | D33: 11.25807222 | E33: 13.59243884 | F33: 1969 | G33: 55.67025006
A34: CFS_01_McK_A_005_X | B34: 2285.643687 | C34: 0.08990123801 | D34: 12.7381911 | E34: 17.70662219 | F34: 1979 | G34: 139.0729108
A35: CFS_01_McK_A_005_X | B35: 2285.643687 | C35: 0.1179362111 | D35: 13.84598236 | E35: 19.54222881 | F35: 1989 | G35: 205.0534845
A36: CFS_01_McK_A_005_X | B36: 2285.643687 | C36: 0.1353096044 | D36: 14.30423704 | E36: 20.51119348 | F36: 1996 | G36: 242.4191611
A37: CFS_01_McK_A_005_X | B37: 926.6123054 | C37: 0.3195282151 | D37: 20.69102057 | E37: 21.35638745 | F37: 2003 | G37: 265.8087285
A38: CFS_01_McK_A_005_X | B38: 901.9026439 | C38: 0.3620660682 | D38: 21.63069234 | E38: 22.77064492 | F38: 2008 | G38: 297.3992996
A39: CFS_01_McK_A_005_X | B39: 852.483321 | C39: 0.4061518021 | D39: 22.60982136 | E39: 23.68416111 | F39: 2014 | G39: 318.6673158
A40: CFS_03_McC_3_021_X | B40: 4545.454545 | C40: 0.0436852836 | D40: 10.27340457 | E40: 14.50481283 | F40: 1984 | G40: 31.51474163
A41: CFS_03_McC_3_021_X | B41: 4545.454545 | C41: 0.05802835905 | D41: 11.39287662 | E41: 15.95497326 | F41: 1989 | G41: 99.37703301
A42: CFS_03_McC_3_021_X | B42: 3810.160428 | C42: 0.07458844353 | D42: 12.4333235 | E42: 16.14411765 | F42: 1994 | G42: 136.5175283
A43: CFS_03_McC_3_021_X | B43: 3342.245989 | C43: 0.09743382766 | D43: 13.3747666 | E43: 17.6315508 | F43: 1999 | G43: 183.4643098
A44: CFS_03_McC_3_021_X | B44: 2740.641711 | C44: 0.1301617686 | D44: 14.3948925 | E44: 17.70053476 | F44: 2004 | G44: 225.9921046
A45: CFS_03_McC_3_021_X | B45: 2272.727273 | C45: 0.1516906688 | D45: 15.28438402 | E45: 18.26737968 | F45: 2009 | G45: 248.5605
A46: CFS_03_McC_3_021_X | B46: 1737.967914 | C46: 0.1834774013 | D46: 16.44402342 | E46: 18.86737968 | F46: 2014 | G46: 238.6512502
A47: GOA_96.1 | B47: 2237.330037 | C47: 0.1345660344 | D47: 14.48569902 | E47: 20.43934487 | F47: 1962 | G47: 201.0765728
A48: GOA_96.1 | B48: 2014.833127 | C48: 0.1808075185 | D48: 15.90879556 | E48: 22.1710136 | F48: 1968 | G48: 270.3082195
A49: GOA_96.1 | B49: 1767.614339 | C49: 0.2380219079 | D49: 18.285035 | E49: 22.26981459 | F49: 1981 | G49: 352.8218903
A50: GOA_96.1 | B50: 1396.786156 | C50: 0.3447776265 | D50: 20.69993305 | E50: 24.05203956 | F50: 1991 | G50: 430.7724744
A51: GOA_96.1 | B51: 1038.318912 | C51: 0.4558024005 | D51: 23.34183935 | E51: 24.43807169 | F51: 2002 | G51: 436.9240369
A52: GOA_96.1 | B52: 494.4375773 | C52: 0.6485314331 | D52: 27.3943287 | E52: 26.15166873 | F52: 2018 | G52: 302.812217
A53: GOA_55.1 | B53: 1197.183099 | C53: 0.2469471178 | D53: 18.73106043 | E53: 22.19800805 | F53: 1961 | G53: 251.7031586
A54: GOA_55.1 | B54: 1086.519115 | C54: 0.3333262376 | D54: 20.37344976 | E54: 24.91350101 | F54: 1968 | G54: 319.6172269
A55: GOA_55.1 | B55: 905.4325956 | C55: 0.4021903084 | D55: 22.80178857 | E55: 24.31533199 | F55: 1981 | G55: 331.186134
A56: GOA_55.1 | B56: 814.889336 | C56: 0.5305799047 | D56: 25.13389584 | E56: 25.28410463 | F56: 1991 | G56: 403.0507595
A57: GOA_55.1 | B57: 684.1046278 | C57: 0.7408517996 | D57: 28.06702711 | E57: 28.50402415 | F57: 2007 | G57: 480.7992344
A58: GOA_55.1 | B58: 100.6036217 | C58: 0.3188499647 | D58: 20.52678774 | E58: 18.73333333 | F58: 2014 | G58: 28.86410521
A59: GOA_55.1 | B59: 80.88978766 | C59: 0.3918472556 | D59: 23.19973042 | E59: 18.275 | F59: 2021 | G59: 28.78448565
A60: RSA GYPSY | B60: 3028.945175 | C60: 0.03738177847 | D60: 9.553210944 | E60: 11.89759297 | F60: 30 | G60: 11.64833536
A61: RSA GYPSY | B61: 2458.690664 | C61: 0.0737525819 | D61: 11.89976191 | E61: 15.21915054 | F61: 40 | G61: 54.76109368
A62: RSA GYPSY | B62: 1977.605976 | C62: 0.1222412769 | D62: 14.18670996 | E62: 17.84882335 | F62: 50 | G62: 133.0570307
A63: RSA GYPSY | B63: 1594.083752 | C63: 0.1829937432 | D63: 16.46168629 | E63: 19.93326587 | F63: 60 | G63: 215.9140835
A64: RSA GYPSY | B64: 1295.364821 | C64: 0.2559825329 | D64: 18.73450893 | E64: 21.6021975 | F64: 70 | G64: 281.4876102
A65: RSA GYPSY | B65: 1063.941018 | C65: 0.3410751093 | D65: 21.00564313 | E65: 22.95570548 | F65: 80 | G65: 328.2963537
A66: RSA GYPSY | B66: 883.9440784 | C66: 0.43812446 | D66: 23.27448729 | E66: 24.06800776 | F66: 90 | G66: 361.2733504
A67: RSA GYPSY | B67: 742.7473834 | C67: 0.5470220655 | D67: 25.54122209 | E67: 24.9937086 | F67: 100 | G67: 384.9046788
A68: NAT GYPSY | B68: 4098.009677 | C68: 0.03681622664 | D68: 8.779105413 | E68: 13.91871675 | F68: 50 | G68: 10.13776893
A69: NAT GYPSY | B69: 3266.113777 | C69: 0.05812508933 | D69: 10.36681024 | E69: 15.81925772 | F69: 60 | G69: 31.00679783
A70: NAT GYPSY | B70: 2657 | C70: 0.08343367393 | D70: 11.86951428 | E70: 17.37727922 | F70: 70 | G70: 67.42627939
A71: NAT GYPSY | B71: 2201.294597 | C71: 0.1126825016 | D71: 13.32733274 | E71: 18.66486659 | F71: 80 | G71: 115.0046245
A72: NAT GYPSY | B72: 1853.038138 | C72: 0.1450328878 | D72: 14.71821114 | E72: 19.73928413 | F72: 90 | G72: 162.7241992
A73: NAT GYPSY | B73: 1581.60421 | C73: 0.1801924902 | D73: 16.05544797 | E73: 20.64476511 | F73: 100 | G73: 203.6575858
A74: NAT GYPSY | B74: 1366.252261 | C74: 0.2179702271 | D74: 17.35001885 | E74: 21.41523484 | F74: 110 | G74: 235.8862346
A75: NAT GYPSY | B75: 1192.659309 | C75: 0.2582439765 | D75: 18.61065159 | E75: 22.07677006 | F75: 120 | G75: 260.3075229
A76: BRL PLOT 2205 | B76: 1300 | C76: 0.1930766547 | D76: 18.19344768 | E76: 17.2 | F76: 2022 | G76: 214.3177636
A77: BRL PLOT 2206 | B77: 1260 | C77: 0.1841972173 | D77: 17.83931364 | E77: 16.56 | F77: 2022 | G77: 193.6357352
A78: BRL PLOT 2207 | B78: 1220 | C78: 0.2198856869 | D78: 19.32285235 | E78: 17.56 | F78: 2022 | G78: 234.1126919
A79: BRL PLOT 2208 | B79: 1180 | C79: 0.2241442704 | D79: 19.34130997 | E79: 17.06 | F79: 2022 | G79: 231.487675
A80: BRL PLOT 2209 | B80: 1220 | C80: 0.2111188899 | D80: 19.01947664 | E80: 16.64 | F80: 2022 | G80: 220.0944141
A81: CFS_01_McK_C_006_X | B81: 9500 | C81: 0.003306365953 | D81: 4.1473437 | E81: 6.89625 | F81: 1954 | G81: 0
A82: CFS_01_McK_C_006_X | B82: 9500 | C82: 0.005046885146 | D82: 4.61799428 | E82: 8.07375 | F82: 1960 | G82: 0
A83: CFS_01_McK_C_006_X | B83: 9500 | C83: 0.01009660835 | D83: 5.71743316 | E83: 10.60875 | F83: 1969 | G83: 0
A84: CFS_01_McK_C_006_X | B84: 2337.5 | C84: 0.143398202 | D84: 14.58261125 | E84: 21.08875 | F84: 2014 | G84: 211.9198705
A85: CFS_06_TPP_1_011_F | B85: 4421.487603 | C85: 0.07242474673 | D85: 11.56670072 | E85: 17.09669422 | F85: 1996 | G85: 121.22795
A86: CFS_06_TPP_1_011_F | B86: 2438.016529 | C86: 0.1128046036 | D86: 13.8253045 | E86: 18.21818182 | F86: 2003 | G86: 145.7278605
A87: CFS_06_TPP_1_011_F | B87: 1983.471074 | C87: 0.1343507017 | D87: 14.75484071 | E87: 18.38099174 | F87: 2009 | G87: 157.7221899
A88: CFS_06_TPP_1_011_F | B88: 1528.92562 | C88: 0.182921152 | D88: 16.5585091 | E88: 19.07107438 | F88: 2015 | G88: 199.7955668
A89: CFS_06_TPP_1_011_N | B89: 6870.748299 | C89: 0.03717578352 | D89: 9.39318753 | E89: 12.32380952 | F89: 1996 | G89: 29.66769072
A90: CFS_06_TPP_1_011_N | B90: 3877.55102 | C90: 0.06241048612 | D90: 11.31600554 | E90: 14.20068027 | F90: 2003 | G90: 76.74013663
A91: CFS_06_TPP_1_011_N | B91: 2789.115646 | C91: 0.08510407002 | D91: 12.60562666 | E91: 14.75918367 | F91: 2009 | G91: 133.676029
A92: CFS_06_TPP_1_011_N | B92: 1496.598639 | C92: 0.1314783779 | D92: 15.05903283 | E92: 17.94081633 | F92: 2015 | G92: 142.3798735
A93: GOA_60.1 | B93: 4666.666667 | C93: 0.03276318985 | D93: 8.96714888 | E93: 13.67901235 | F93: 1961 | G93: 17.45245743
A94: GOA_60.1 | B94: 4148.148148 | C94: 0.05242650936 | D94: 9.94957259 | E94: 16.20308642 | F94: 1968 | G94: 58.86553726
A95: GOA_60.1 | B95: 3283.950617 | C95: 0.07989759534 | D95: 12.06555238 | E95: 17.35407407 | F95: 1981 | G95: 140.5505201
A96: GOA_60.1 | B96: 2923.45679 | C96: 0.1107409872 | D96: 13.56064553 | E96: 19.00123457 | F96: 1991 | G96: 198.3476954
A97: GOA_60.1 | B97: 1827.160494 | C97: 0.1978701139 | D97: 16.70734249 | E97: 19.64938272 | F97: 2007 | G97: 277.9088945
A98: WYGP_606006000001_3 | B98: 512.5 | C98: 0.03776571824 | D98: 13.5892015 | E98: 6.17125 | F98: 1976 | G98: 2.56422022
A99: WYGP_606006000001_3 | B99: 500 | C99: 0.0940632407 | D99: 17.940457 | E99: 8.99875 | F99: 1984 | G99: 35.76951835
A100: WYGP_606006000001_3 | B100: 487.5 | C100: 0.2560541767 | D100: 23.58445233 | E100: 13.36 | F100: 2000 | G100: 112.3205965
A101: WYGP_606006000001_3 | B101: 462.5 | C101: 0.3591289282 | D101: 26.31135306 | E101: 15.35 | F101: 2010 | G101: 152.9325475
A102: WYGP_606006000001_3 | B102: 412.5 | C102: 0.5078385824 | D102: 28.76027151 | E102: 18.8875 | F102: 2021 | G102: 195.9925205
A103: BRL CT PLOTS 2022
A104: CFS_01_McK_A_006_X | B104: 10612.5 | C104: 0.003442689592 | D104: 4.09964758 | E104: 7.715 | F104: 1954 | G104: 0
A105: CFS_01_McK_A_006_X | B105: 10975 | C105: 0.005817042641 | D105: 4.66967331 | E105: 9.8175 | F105: 1960 | G105: 0
A106: CFS_01_McK_A_006_X | B106: 10987.5 | C106: 0.01210669832 | D106: 5.73380515 | E106: 13.16 | F106: 1969 | G106: 1.0777658
A107: CFS_01_McK_A_006_X | B107: 10962.5 | C107: 0.01798876461 | D107: 6.50024325 | E107: 15.32375 | F107: 1979 | G107: 7.55509078
A108: CFS_01_McK_A_006_X | B108: 10987.5 | C108: 0.02297592613 | D108: 7.08585949 | E108: 16.61 | F108: 1989 | G108: 43.67540595
A109: CFS_01_McK_A_006_X | B109: 11000 | C109: 0.02767336211 | D109: 7.38288083 | E109: 17.73375 | F109: 1996 | G109: 81.65816289
A110: CFS_01_McK_A_006_X | B110: 2300 | C110: 0.144469533 | D110: 14.69789933 | E110: 20.805 | F110: 2014 | G110: 211.6171533
A111: CFS_01_McK_B_001_X | B111: 4719.545342 | C111: 0.00708220686 | D111: 5.50291883 | E111: 7.62268347 | F111: 1954 | G111: 0
A112: CFS_01_McK_B_001_X | B112: 4719.545342 | C112: 0.0119041226 | D112: 6.44878796 | E112: 9.52260934 | F112: 1960 | G112: 0
A113: CFS_01_McK_B_001_X | B113: 4719.545342 | C113: 0.02497588659 | D113: 8.09254739 | E113: 12.98984433 | F113: 1969 | G113: 7.31918185
A114: CFS_01_McK_B_001_X | B114: 4719.545342 | C114: 0.04117573631 | D114: 9.26007212 | E114: 16.29134174 | F114: 1979 | G114: 53.29658964
A115: CFS_01_McK_B_001_X | B115: 4719.545342 | C115: 0.05512336049 | D115: 10.26029554 | E115: 17.87693847 | F115: 1989 | G115: 115.8944843
A116: CFS_01_McK_B_001_X | B116: 4719.545342 | C116: 0.06455713364 | D116: 10.79572534 | E116: 18.37380776 | F116: 1996 | G116: 165.6505834
A117: CFS_01_McK_B_001_X | B117: 2013.83741 | C117: 0.1535117787 | D117: 15.25565595 | E117: 19.78299975 | F117: 2003 | G117: 216.3696156
A118: CFS_01_McK_B_001_X | B118: 1853.224611 | C118: 0.1816479786 | D118: 16.28039251 | E118: 20.67412898 | F118: 2008 | G118: 256.0903693
A119: CFS_01_McK_B_001_X | B119: 1680.256981 | C119: 0.2188288497 | D119: 17.54114955 | E119: 21.45290339 | F119: 2014 | G119: 296.5793099

Sheet coeffs (hidden)
A1: lkp | B1: a | C1: b | D1: coeff_logn | E1: coeff_logd | F1: coeff_int | G1: alpha | H1: beta | I1: gamma | J1: delta | K1: slope | L1: int1 | M1: se | N1: c
A2: mratio | B2: -4.683521238 | C2: 4.391729652 | N2: 0.9618390363
A3: qmd | D3: 0.2068205644 | E3: 3.052210658 | F3: -5.146071773
A4: topht1 | G4: 8366.226755 | H4: -2.873613588 | I4: 0.2978112904 | J4: -1.590152515
A5: topht2 | G5: 8.295003261e-06 | H5: 3.538031998 | I5: -2.219680006e-12 | J5: 5.803925759
A6: topht3 | G6: -0.0004788090252 | H6: 3.778423634e-05 | I6: 1.982999277 | J6: 0.9831822476
A7: maxden1 | K7: -1.449074611 | L7: 4.130887475 | M7: 0.1139495222
A8: maxden2 | K8: -0.5337894218 | L8: 3.015427337 | M8: 0.03616588264
A9: topht4 | B9: 20.84456456 | C9: 0.6416368553 | N9: -0.2889951029
